Cogmind - Beta 17 @@@ ROGUE MODE // 2026.07.18 @ 04:22:02 Player: Artackni Result: Destroyed by B-99 Colossus with Multirail Performance ------------- Evolutions (9) 4500 Regions Visited (26) 5200 Robots Destroyed (554) 2770 Value Destroyed (23709) 23709 Prototype IDs (75) 1500 Alien Tech Used (0) 0 Bonus (41325) 41325 TOTAL SCORE: 79004 Bonus ------- Triggered High Security 1500 High Alert Combat Kills 5897 Follower Combat Kills 6172 Prayed to X0-1V1 5000 Major X0-1V1 Interference 17850 Network Hubs Disabled 400 Met Imprinter 300 Was Imprinted 300 Met Zhirov 300 MAIN.C Attacked Warlord 500 Warlord Defense Kills 3864 Built Enhanced Grunts 300 A7 Reached Mainframe 300 Met R17 at Cetus 500 Read Decrypted Archives 300 Scanned by Researcher 500 Friendly Fire -2658 Cogmind --------- Core Integrity 0/1900 Matter 800/800 Energy 652/900 System Corruption 8% Temperature Cool (-666) Movement Core (50) Location -1/Command Parts ------- > --- POWER (2) -------- (None) > --- PROPULSION (7) --- (None) > --- UTILITY (12) ----- Spectral Analyzer Core Analyzer Armor Integrity Analyzer Ghost Barrier > --- WEAPON (5) ------- (None) > --- INVENTORY (5) ---- Quantum Reactor Experimental Reaction Control System Enhanced Nova Cannon Gamma Bomb Array Gamma Bomb Array Peak State ------------ > --- POWER ------------ Light Particle Reactor Quantum Reactor > --- PROPULSION ------- Experimental Biometal Heavy Treads Advanced Heavy Siege Treads Advanced Heavy Siege Treads > --- UTILITY ---------- Advanced Heat Sink Huge Storage Unit Spectral Analyzer Experimental Terrain Scan Processor Core Analyzer Advanced Weapon Cycler Advanced Transmission Jammer SHELL Armor Thermal Barrier AEGIS Remote Shield > --- WEAPON ----------- YOLO Cannon Heavy Machine Gun KE Penetrator Railgun > --- INVENTORY -------- Experimental Matter Compressor Seismic Detector Experimental Cloaking Device Experimental Focal Shield Improved Force Field Experimental Hacking Suite Experimental Hacking Suite Experimental Hacking Suite System Mapper System Mapper Improved System Shield Ghost Barrier High-powered Tractor Beam Phasing AFG Warp Gun Enhanced Quantum Rifle Scatter Rocket Array Advanced Micro-nuke Launcher [Rating: 217] Favorites ----------- Power Cold Fusion Reactor Engine Reinforced Deuterium Engine Power Core Micro Nuclear Core Reactor Cold Fusion Reactor Propulsion Light Treads Treads Light Treads Leg Carbon-fiber Leg Wheel Compact Wheel Flight Unit Flight Unit Utility Core Analyzer Device Improved Cooling System Storage Large Storage Unit Processor Core Analyzer Hackware Experimental Hacking Suite Protection Makeshift Ablative Armor Weapon Improved KE Penetrator Energy Gun Thermic Laser Energy Cannon Subdweller Beam Cannon Ballistic Gun Improved KE Penetrator Ballistic Cannon Mass Driver Launcher Scatter Rocket Array Special Weapon Improved Plasma Cutter Impact Weapon Powered Hammer Slashing Weapon Centrium Greatsword Piercing Weapon Heavy Pick Build | -11 -10 -10 -8 -7 -6 -6 -6 -6 -6 -6 -5 -5 -5 -5 -5 -5 -4 -4 -4 -4 -3 -3 -3 -2 -1 -1 ------- Run | Yrd Mat Sub Mat Fac Fac Was Fac Low Low Zio Pro Fac Ext Cet Arc Hub Fac Upp Upp War Pro Res Tes Res Acc Com Slots Evolved 18 | . . . 4 2 2 . . . . . . 2 . . . . 2 . . . . 2 . 2 2 . Power . | . . . . . . . . . . . . . . . . . . . . . . . . . . . Propulsion 5 | . . . 3 . 1 . . . . . . 1 . . . . . . . . . . . . . . Utility 10 | . . . 1 1 . . . . . . . 1 . . . . 2 . . . . 1 . 2 2 . Weapon 3 | . . . . 1 1 . . . . . . . . . . . . . . . . 1 . . . . Parts Attached 360 | 9 4 16 32 54 30 3 2 2 2 12 5 13 7 9 5 2 6 . 3 14 . 24 24 10 47 25 Power 34 | 1 . 4 4 7 3 . 1 . . . . . 1 1 . . . . . 1 . . 3 3 2 3 Engine 18 | 1 . 4 3 5 2 . . . . . . . 1 . . . . . . . . . . . 2 . Core 4 | . . . 1 2 1 . . . . . . . . . . . . . . . . . . . . . Reactor 12 | . . . . . . . 1 . . . . . . 1 . . . . . 1 . . 3 3 . 3 Propulsion 104 | 4 . 5 16 20 11 . 1 1 . 2 2 1 1 1 . . . . 2 6 . 6 7 2 9 7 Treads 62 | 2 . 4 9 6 2 . . . . . 1 1 1 1 . . . . 2 6 . 6 7 2 7 5 Leg 23 | . . . 2 10 5 . 1 1 . 2 . . . . . . . . . . . . . . . 2 Wheel 19 | 2 . 1 5 4 4 . . . . . 1 . . . . . . . . . . . . . 2 . Hover . | . . . . . . . . . . . . . . . . . . . . . . . . . . . Flight . | . . . . . . . . . . . . . . . . . . . . . . . . . . . Utility 117 | 2 2 1 4 18 7 2 . 1 1 7 . 5 . 3 2 1 5 . 1 4 . 11 9 1 21 9 Device 66 | 1 1 1 1 10 6 2 . . . 1 . 1 . 2 . . 4 . 1 3 . 8 6 1 12 5 Storage 10 | 1 1 . . 2 1 . . . . . . 2 . . . 1 . . . . . 2 . . . . Processor 17 | . . . 1 3 . . . . 1 4 . . . . . . 1 . . . . 1 2 . 2 2 Hackware 11 | . . . . . . . . . . 2 . . . . . . . . . . . . . . 7 2 Protection 13 | . . . 2 3 . . . 1 . . . 2 . 1 2 . . . . 1 . . 1 . . . Artifact . | . . . . . . . . . . . . . . . . . . . . . . . . . . . Weapon 105 | 2 2 6 8 9 9 1 . . 1 3 3 7 5 4 3 1 1 . . 3 . 7 5 4 15 6 Energy Gun 20 | 1 . . . . 4 . . . 1 2 2 3 . 2 . . . . . . . . 2 . 3 . Energy Cannon 8 | . . 2 . . 1 . . . . . . 1 . . . 1 . . . . . . . . 2 1 Ballistic Gun 56 | 1 2 3 7 4 2 1 . . . . . 1 4 2 2 . 1 . . 2 . 7 3 3 8 3 Ballistic Cannon 3 | . . 1 . . . . . . . . . 2 . . . . . . . . . . . . . . Launcher 8 | . . . . 1 2 . . . . 1 . . . . 1 . . . . . . . . 1 . 2 Special Weapon 1 | . . . . . . . . . . . . . 1 . . . . . . . . . . . . . Impact Weapon 1 | . . . . 1 . . . . . . . . . . . . . . . . . . . . . . Slashing Weapon 5 | . . . 1 2 . . . . . . 1 . . . . . . . . . . . . . 1 . Piercing Weapon 3 | . . . . 1 . . . . . . . . . . . . . . . 1 . . . . 1 . Special Melee Weapon . | . . . . . . . . . . . . . . . . . . . . . . . . . . . Unidentified Prototypes 59 | . 1 1 3 4 1 . 1 . . 7 1 4 2 6 . 1 . . . 5 . 5 7 . 8 2 Corrupted Parts 3 | . . . . . . . . . . . . . . . . . . . . 1 . . 1 . . 1 System Corruption 16 | . . . . . . . . . . . . . . . . . . . . 3 . . 8 . . 5 Parts Lost 125 | . 1 7 10 39 3 . . . . . 5 2 2 . 3 . . . 1 . . . 9 10 16 17 Power 20 | . . 2 . 7 . . . . . . 1 . . . . . . . . . . . 3 2 4 1 Propulsion 41 | . 1 4 8 13 1 . . . . . 1 . 1 . . . . . 1 . . . 2 2 . 7 Utility 34 | . . . 1 13 1 . . . . . . 1 . . 2 . . . . . . . . 2 5 9 Weapon 30 | . . 1 1 6 1 . . . . . 3 1 1 . 1 . . . . . . . 4 4 7 . Highest Loss Streak 16 | . 1 2 3 16 2 . . . . . 3 1 1 . 3 . . . 1 . . . 2 5 5 7 To Critical Strikes 7 | . . . . 1 . . . . . . . . . . . . . . 1 . . . 2 1 . 2 Average Backups 13 | 1 13 13 12 8 11 14 14 15 14 14 14 14 19 20 13 5 10 10 8 9 10 12 23 24 18 4 Power . | . 1 . . . . 1 . . . . . . . . . . . . . . 1 1 1 1 . . Propulsion 1 | . 5 3 1 1 2 2 1 2 3 2 1 . . . . . 2 2 . . . 2 1 . . . Utility 6 | . 3 4 3 2 4 7 8 7 7 8 9 10 12 13 8 3 3 3 3 5 7 6 15 16 11 1 Weapon 4 | . 3 3 7 3 3 4 4 4 4 4 3 3 6 6 4 2 4 5 5 4 1 2 4 5 5 2 Tool/Special . | . . . . . . . . . . . . . . . . . . . . . . . . . . . Unused Backups 83 | . . 1 5 16 11 1 2 1 2 4 4 1 4 2 2 4 . . . 4 1 2 8 2 4 2 Power 3 | . . . . . . 1 . . . . . . . . . . . . . . . . . . 1 1 Propulsion 11 | . . . . . 2 . . . . . . . . . . 4 . . . 1 1 1 2 . . . Utility 33 | . . 1 1 2 6 . 2 . 2 3 2 1 . . 2 . . . . 1 . . 5 1 3 1 Weapon 31 | . . . 3 13 2 . . 1 . 1 2 . 4 1 . . . . . 2 . 1 . 1 . . Tool/Special 5 | . . . 1 1 1 . . . . . . . . 1 . . . . . . . . 1 . . . Average Slot Usage (%) 84 | . 96 99 84 73 89 99 100 99 99 99 88 75 77 83 81 71 83 85 89 84 85 83 78 81 71 51 Engine 4 | . 14 15 11 9 6 6 6 6 6 6 1 . . 2 . . . . . . . . . . . . Reactor 3 | . . . . . . . 2 6 6 6 6 5 5 7 11 9 10 10 10 7 4 4 6 7 4 2 Treads 13 | . 24 23 19 8 8 . . . . . 1 10 12 16 16 13 15 15 19 19 24 21 21 22 14 8 Leg 7 | . . . 2 15 9 31 35 33 31 31 23 . . . . . . . . . . . . . . 1 Wheel 2 | . . 3 8 1 9 . . . . . 2 5 3 . . . . . . . . . . . . . Device 10 | . 14 13 7 10 13 12 12 12 9 5 . 4 5 5 5 4 14 15 15 13 9 16 8 11 16 10 Storage 5 | . 14 13 8 5 5 6 6 6 6 6 6 5 5 5 2 . 5 5 5 4 4 4 4 4 2 . Processor 8 | . . . 3 6 9 6 6 6 6 7 18 14 11 11 11 9 10 15 15 14 14 13 13 12 9 6 Protection 2 | . . . 2 3 . . . . 5 5 . 1 5 5 6 8 5 5 5 4 4 . 2 4 2 . Energy Gun 5 | . 2 . . . 15 18 13 15 14 18 15 15 12 5 2 . . . . . . . . 1 . . Ballistic Gun 13 | . 25 16 15 6 6 9 12 12 12 12 2 2 12 21 22 22 22 20 20 19 20 21 18 16 12 . Peak Build Rating 217 | 7 19 30 50 97 81 78 74 77 77 89 101 119 127 155 149 141 158 149 149 159 149 182 186 193 217 208 Average Rating 99 | 5 7 22 34 55 67 75 73 75 76 78 85 116 124 146 142 140 151 149 137 141 141 169 175 178 181 122 On Entrance 99 | . 7 19 30 31 13 66 78 74 77 77 89 96 118 126 149 141 140 149 149 137 149 138 178 150 170 147 Avg Prop Armor Cover (%) 23 | . . 2 11 24 17 . . 3 . . 17 23 20 . . . . . . 2 . 3 4 . 41 36 Naked Turns 11 | . . . . 11 . . . . . . . . . . . . . . . . . . . . . . Heaviest Build 197 | 14 30 40 50 120 72 82 73 81 81 81 71 89 102 103 103 70 78 71 71 105 105 168 187 187 197 93 Greatest Support 273 | 40 40 60 103 140 77 77 92 97 81 86 87 28 183 240 240 240 240 240 240 248 216 235 230 236 273 190 Greatest Overweight (x) 11 | . 1 3 4 3 4 1 . . . . 2 3 3 . . . . . . . . . 1 1 11 5 Average Overweight (x) . | . . . . . . . . . . . . 1 2 . . . . . . . . . . . . . Largest Inventory Capacity 25 | 8 15 15 15 25 15 15 15 15 15 15 15 20 20 20 20 10 10 10 10 10 10 25 25 25 25 5 Average Capacity 15 | 7 13 15 15 17 14 15 15 15 15 15 15 15 20 20 12 6 10 10 10 10 10 15 25 25 20 5 Most Carried 25 | 6 15 15 15 17 15 15 15 15 15 15 15 17 20 20 20 10 10 10 10 10 10 25 25 25 25 5 Average Carried 13 | 1 13 13 14 8 11 14 14 14 14 14 14 14 19 19 12 5 9 10 8 9 9 12 24 24 19 4 Final Capacity 25 | 8 15 15 15 5 15 15 15 15 15 15 15 20 20 20 5 10 10 10 10 10 10 25 25 25 5 5 Final Carried 25 | 6 15 15 15 4 14 15 15 15 15 15 15 17 20 20 5 10 10 10 10 10 10 25 25 24 5 5 Transmogrified Parts 22 | . . 11 11 . . . . . . . . . . . . . . . . . . . . . . . Integrity Recovered 385 | . . 238 147 . . . . . . . . . . . . . . . . . . . . . . . Class Distribution -------------------- 26% | Scavenger-Tank 20% | Mutant 19% | Scavenger-Gunner 7% | Tank 5% | Commander-Tank 4% | Gunner 4% | Scavenger-Mutant Dominant Class ---------------- Mutant | -10/Materials Mutant | -10/Subcaves Scavenger-Mutant | -8/Materials Mutant | -7/Factory Scavenger-Gunner | -6/Factory Scavenger-Gunner | -6/Waste Scavenger-Gunner | -6/Factory Scavenger-Gunner | -6/Lower Caves Scavenger-Tank | -6/Lower Caves Scavenger-Gunner | -6/Zion Gunner | -5/Proximity Caves Tank | -5/Factory Commander-Tank | -5/Extension Commander-Tank | -5/Cetus Commander-Tank | -5/Archives Scavenger-Executioner | -5/Hub_04(d) Scavenger-Tank | -4/Factory Scavenger-Tank | -4/Upper Caves Scavenger-Tank | -4/Upper Caves Scavenger-Tank | -4/Warlord Scavenger-Tank | -3/Proximity Caves Scavenger-Tank | -3/Research Scavenger-Tank | -3/Testing Scavenger-Tank | -2/Research Scavenger-Tank | -1/Access Wizard-Mutant | -1/Command Resources | -11 -10 -10 -8 -7 -6 -6 -6 -6 -6 -6 -5 -5 -5 -5 -5 -5 -4 -4 -4 -4 -3 -3 -3 -2 -1 -1 ----------- Run | Yrd Mat Sub Mat Fac Fac Was Fac Low Low Zio Pro Fac Ext Cet Arc Hub Fac Upp Upp War Pro Res Tes Res Acc Com Matter Collected 23065 | 368 342 1087 1607 1801 1392 406 121 183 286 80 643 323 872 216 130 640 769 153 211 788 211 2120 3241 913 3464 698 Remotely 1423 | . . . . . . . . . . . . . . . . . . . . . . . . . 1423 . Salvage Created 28066 | 209 610 616 2694 3687 2008 606 293 307 269 . 723 260 1191 . 76 1702 715 . 299 1621 146 1967 3078 1421 3026 542 Parts 1242 | 24 43 34 145 156 64 7 13 7 13 . 16 13 51 . 3 77 38 . 11 49 10 102 152 62 130 22 Haulers Intercepted 17 | . . . 5 2 4 . . . . . . . . . . 3 . . . . . . 1 1 1 . Recyclers Shooed 24 | 2 1 . 3 3 . . 1 . . . . . . . . . . . . . . . 2 2 10 . Parts Field Recycled . | . . . . . . . . . . . . . . . . . . . . . . . . . . . Retrieved Matter . | . . . . . . . . . . . . . . . . . . . . . . . . . . . Parts Self-Destructed 87 | . . 28 . . . . . 12 17 . 9 . . . . . . . 11 . 10 . . . . . Prevented 12 | . . . . . . . . . 1 . 7 . . . . . . 4 . . . . . . . . Parts Restored . | . . . . . . . . . . . . . . . . . . . . . . . . . . . Kills | -11 -10 -10 -8 -7 -6 -6 -6 -6 -6 -6 -5 -5 -5 -5 -5 -5 -4 -4 -4 -4 -3 -3 -3 -2 -1 -1 ------- Run | Yrd Mat Sub Mat Fac Fac Was Fac Low Low Zio Pro Fac Ext Cet Arc Hub Fac Upp Upp War Pro Res Tes Res Acc Com Combat Hostiles Destroyed 390 | . 14 20 42 54 26 3 4 5 7 . 16 5 20 . 1 9 10 . 4 29 4 26 35 14 37 5 Melee 21 | . . . . 21 . . . . . . . . . . . . . . . . . . . . . . Guns 278 | . 14 14 36 19 21 . 4 5 7 . 1 3 20 . 1 9 10 . 4 13 4 26 34 14 19 . Cannons 15 | . . 6 1 . . . . . . . . 2 . . . . . . . . . . 1 . 3 2 AOE 67 | . . . 4 10 4 3 . . . . 15 . . . . . . . . 16 . . . . 14 1 Classes Destroyed 30 | 3 3 3 7 3 . 2 . . 1 . . . 1 . . . . . . 3 . . 2 1 . 1 Worker 42 | 1 1 . 5 9 2 . 1 . . . . 2 . . . 6 . . . . . 2 5 3 5 . Builder 34 | . . . 4 5 3 . . . . . . . 1 . . 5 . . . . . 3 3 1 9 . Tunneler 9 | 7 1 . . . . . . . . . . . . . . . . . . . . . . 1 . . Hauler 17 | . . . 5 2 4 . . . . . . . . . . 3 . . . . . . 1 1 1 . Recycler 34 | 1 . . 3 13 2 . . . . . . . . . . 4 . . . . . 2 2 3 4 . Mechanic 2 | . . . 1 . . . . . . . . 1 . . . . . . . . . . . . . . Operator 9 | . 1 . 3 1 . . 1 . . . . . . . . 1 . . . . . 2 . . . . Watcher 9 | . . . 3 1 1 . . . . . . . 1 . . 1 . . . . . . 1 . . 1 Swarmer 55 | . 2 8 8 . 4 . . . 5 . . 3 3 . . . . . 1 . 4 10 3 4 . . Saboteur 4 | . . . . . . . . . . . . . . . . . . . . 3 . . . 1 . . Grunt 167 | . 12 5 21 18 14 . 2 1 1 . 8 . 11 . 1 5 5 . 1 19 . 5 18 1 17 2 Brawler 12 | . . . . 1 3 . 1 . . . . . . . . . . . . 1 . . . 1 4 1 Duelist 12 | . . . 2 4 1 . . 1 . . . . 1 . . . . . . . . . . . 3 . Protector 6 | . . . . 3 . . . . . . . . . . . . . . . 2 . . . . 1 . Researcher 3 | . . . . . . . . . . . . . . . . . . . . . . . 3 . . . Sentry 33 | . . 1 5 7 1 . 1 . . . 1 . 4 . . 1 3 . 1 . . 4 . 3 1 . Specialist 12 | . . . 4 5 . . . . . . . . . . . 2 . . . . . 1 . . . . Hunter 24 | . . . 2 7 2 . . 1 . . 2 1 . . . . . . . . . 1 3 1 4 . Programmer 36 | . . . . 9 1 . . . . . . 1 . . . 1 2 . . . . 5 8 2 5 2 Heavy 3 | . . . . . . . . . . . . . . . . . . . . . . . . 1 2 . Q-Series 2 | . . . . . . . . . . . . . . . . . . . . . . . 2 . . . Behemoth 4 | . . . . . . . . . . . . . 1 . . . . . 1 2 . . . . . . Compactor 3 | . . . . . . 3 . . . . . . . . . . . . . . . . . . . . Striker 1 | . . . . . . . . . . . . . . . . . . . . 1 . . . . . . Executioner 1 | . . . . . . . . . . . . . . . . . . . . 1 . . . . . . Protovariant D 1 | . . . . . . . . . . . . . . . . . . . . . . . 1 . . . Artisan 1 | . . 1 . . . . . . . . . . . . . . . . . . . . . . . . Subdweller 6 | . . 6 . . . . . . . . . . . . . . . . . . . . . . . . Z-Light 1 | . . . . . . . . . . . . . . . . . . . . . . . . . . 1 Surgeon 1 | . . . . . . . . . . . . . . . . . . . . 1 . . . . . . Thug 7 | . . . . . . . . 2 . . 5 . . . . . . . . . . . . . . . Butcher 1 | . . . . . . . . . . . . . . . . . . . . 1 . . . . . . Martyr 2 | . . . . . . 2 . . . . . . . . . . . . . . . . . . . . Mutant 1 | . . . . . . . . . 1 . . . . . . . . . . . . . . . . . Best Kill Streak 16 | 3 3 5 5 15 7 2 4 2 3 . 7 4 6 . 1 10 4 . 3 16 4 6 7 7 15 3 Combat Bots Only 16 | . 3 5 5 12 6 2 3 2 3 . 7 3 6 . 1 3 4 . 3 16 4 6 5 5 9 3 Max Kills in Single Turn 10 | 1 1 2 4 5 3 1 1 1 1 . 4 3 3 . 1 8 1 . 2 10 3 2 3 2 8 1 Gunslinging 2 | . . 1 1 . 1 . . . . . . . 2 . . 1 . . 1 . 1 1 1 1 1 . Exploded 10 | . . . 3 5 2 1 . . . . 4 . . . . . . . . 10 . . . . 4 1 Melee 1 | . . . . 1 . . . . . . . . . . . . . . . . . . . . . . Uniques/NPCs Destroyed . | . . . . . . . . . . . . . . . . . . . . . . . . . . . Combat | -11 -10 -10 -8 -7 -6 -6 -6 -6 -6 -6 -5 -5 -5 -5 -5 -5 -4 -4 -4 -4 -3 -3 -3 -2 -1 -1 -------- Run | Yrd Mat Sub Mat Fac Fac Was Fac Low Low Zio Pro Fac Ext Cet Arc Hub Fac Upp Upp War Pro Res Tes Res Acc Com Hostile Shots Fired 3424 | . 72 134 192 701 123 . 6 19 56 . 77 27 95 3 . 33 54 . 30 126 8 232 400 154 489 393 Missed 1059 | . 25 37 57 257 38 . 2 4 20 . 28 4 30 1 . 11 22 . 8 46 2 62 97 45 134 129 Hits 2365 | . 47 97 135 444 85 . 4 15 36 . 49 23 65 2 . 22 32 . 22 80 6 170 303 109 355 264 Melee 30 | . . . 3 12 1 . . 2 . . . . 1 . . . . . . 1 . . . 3 5 2 Projectile 2335 | . 47 97 132 432 84 . 4 13 36 . 49 23 64 2 . 22 32 . 22 79 6 170 303 106 350 262 AOE 10 | . . . . . . . . . . . . . . . . . . . . . . . 3 7 . . Critical Strikes 105 | . . 2 4 12 2 . . 1 . . 1 2 1 1 1 3 2 . 2 3 . 2 22 4 19 21 Part Disruptions 9 | . . . 1 1 . . . . . . . . . . . . . . . 1 . 2 3 . 1 . Damage Taken 42038 | . 577 1305 2183 6415 1431 60 68 298 424 . 1082 429 1178 104 1363 522 659 . 448 1519 67 1431 4362 2360 7599 6154 Core 5196 | . 109 185 223 1096 255 2 . 45 22 . 83 19 26 12 20 46 . . . 83 . 59 243 93 459 2116 Absorbed by Shields 7013 | . . . . . 236 15 4 52 124 . . . 248 38 . . . . . 367 65 1321 2013 1058 710 762 Reduced by Siege Mode 103 | . . . . . . . . . . . . . . . . . . . . . . 44 25 . 34 . Redirected to Shielding 48 | . . . . . . . . . . . . . . . . . . . . 7 . 41 . . . . Ignored by Resistances 1578 | . . . . 39 . . . . . . . . . . . . 11 . 78 . . 189 . . 1159 102 Regen/Repaired (Parts) 4828 | . . . . 127 . 133 19 131 32 . . . . . . . . . . 979 . . 1211 1120 1076 . Core Remaining (%) 73 | 100 . 38 76 23 . . . . . . 64 . . . . 90 . . . . 94 . 81 94 . . Volleys Fired 1080 | 26 57 66 166 80 74 14 9 17 19 . 27 11 28 5 2 28 22 . 8 30 4 58 135 51 91 52 Largest 5 | 2 2 2 2 3 4 5 4 5 4 . 3 5 5 5 5 5 5 . 4 5 4 5 5 5 5 4 Hottest 374 | 60 60 160 94 84 271 294 209 294 225 . 245 364 374 258 164 162 162 . 129 176 134 186 176 218 249 219 Shots Fired 3276 | 52 114 119 330 188 247 38 38 70 74 . 29 44 135 18 10 140 100 . 32 124 17 267 452 215 336 87 Gun 3134 | 52 114 92 330 178 244 30 38 70 73 . 9 34 131 18 10 140 100 . 32 122 17 267 452 215 324 42 Cannon 88 | . . 27 . . . . . . . . . 10 4 . . . . . . . . . . . 7 40 Launcher 54 | . . . . 10 3 8 . . 1 . 20 . . . . . . . . 2 . . . . 5 5 Special . | . . . . . . . . . . . . . . . . . . . . . . . . . . . Kinetic 2680 | 26 109 107 313 178 91 12 18 34 36 . 4 5 69 15 10 140 100 . 32 122 17 267 439 200 304 32 Thermal 539 | 26 5 12 14 . 153 18 20 36 37 . 5 39 66 3 . . . . . . . . 13 15 27 50 Explosive 49 | . . . . 10 3 8 . . 1 . 20 . . . . . . . . 2 . . . . 5 . Electromagnetic 8 | . . . 3 . . . . . . . . . . . . . . . . . . . . . . 5 Robot Hit Streak 28 | 7 9 7 8 28 14 5 10 5 12 . 9 7 9 11 4 18 7 . 10 12 7 13 10 10 19 20 Robot Miss Streak 9 | 3 6 4 9 5 4 5 3 2 8 . 8 4 5 1 2 3 4 . 4 4 4 4 5 4 4 7 Penetration Max 2 | . . . 1 1 1 1 . 1 . . . . 2 1 1 1 . . . 1 1 2 1 2 1 1 Secondary Targets 69 | . 2 3 7 . 4 . 1 1 2 . . . 6 . . 2 1 . 1 5 2 8 11 5 8 . Max Gunslinging Chain 2 | . 1 1 1 . 1 . 1 1 1 . . . 2 . . 1 1 . 1 1 2 1 1 2 1 . Shots Hit Robots 2057 | 29 71 66 215 257 146 22 22 45 31 . 16 19 89 15 8 68 58 . 23 74 9 137 259 121 219 38 Core Hits 1335 | 10 32 31 104 137 82 32 12 15 17 . 57 9 47 7 2 50 26 . 8 131 6 64 127 61 232 36 Critical Kills 43 | . . . 4 2 . 1 . . . . . . 3 . . 3 1 . 2 5 1 8 10 3 . . Critical Parts Destroyed 83 | . 1 . 5 16 . . . . 1 . . . 5 2 1 5 1 . 1 9 . 10 9 6 11 . Critical Strikes 169 | . 1 . 9 30 11 4 1 3 2 . . 2 11 2 1 8 2 . 3 15 1 18 21 10 12 2 Burn 27 | . . . . . 11 3 1 3 1 . . 2 3 . . . . . . . . . 1 1 1 . Destroy 119 | . 1 . 9 7 . 1 . . 1 . . . 8 2 1 8 2 . 3 15 1 18 20 9 11 2 Smash 12 | . . . . 12 . . . . . . . . . . . . . . . . . . . . . . Sever 10 | . . . . 10 . . . . . . . . . . . . . . . . . . . . . . Impale 1 | . . . . 1 . . . . . . . . . . . . . . . . . . . . . . Melee Attacks 161 | . . . 1 148 . . . . . . 3 . . . 1 2 . . . 1 . . . . 5 . Impact 81 | . . . . 81 . . . . . . . . . . . . . . . . . . . . . . Slashing 68 | . . . 1 61 . . . . . . 1 . . . 1 2 . . . . . . . . 2 . Piercing 8 | . . . . 6 . . . . . . 2 . . . . . . . . . . . . . . . Entropic 4 | . . . . . . . . . . . . . . . . . . . . 1 . . . . 3 . Sneak Attacks 18 | . . . . 18 . . . . . . . . . . . . . . . . . . . . . . Combat Hostiles 1 | . . . . 1 . . . . . . . . . . . . . . . . . . . . . . Follow-up Attacks 4 | . . . . 4 . . . . . . . . . . . . . . . . . . . . . . Damage Inflicted 77728 | 342 914 1030 3998 12857 4138 3763 513 1002 852 . 2455 718 3218 554 453 3220 1690 . 778 6562 387 4468 6889 3939 10509 2479 Guns 48661 | 342 914 724 3472 2696 3378 605 513 1002 773 . 18 451 3116 554 322 2339 1690 . 778 3261 387 4468 6449 3886 5747 776 Cannons 2047 | . . 306 67 . . . . . . . . 267 102 . . 85 . . . . . . 92 . 636 492 Explosions 19057 | . . . 459 2681 760 3158 . . 79 . 2308 . . . . 796 . . . 3301 . . 204 . 4100 1211 Melee 7732 | . . . . 7472 . . . . . . 129 . . . 131 . . . . . . . . . . . Ramming 231 | . . . . 8 . . . . . . . . . . . . . . . . . . 144 53 26 . Kinetic 42850 | 155 879 862 3349 2696 1329 330 252 572 395 . . 53 2004 507 322 2424 1690 . 778 3261 387 4468 6216 3710 5556 655 Thermal 9052 | 187 35 168 155 . 2224 275 261 430 378 . 18 665 1214 47 . . . . . . . . 233 176 1422 1164 Explosive 16280 | . . . 459 2681 585 3158 . . 79 . 2308 . . . . . . . . 3301 . . 204 . 3505 . Electromagnetic 1491 | . . . 35 . . . . . . . . . . . . 796 . . . . . . . . . 660 Impact 3018 | . . . . 3018 . . . . . . . . . . . . . . . . . . . . . . Slashing 4463 | . . . . 4332 . . . . . . . . . . 131 . . . . . . . . . . . Piercing 251 | . . . . 122 . . . . . . 129 . . . . . . . . . . . . . . . Phasic 92 | . . . . . . . . . . . . . . . . . . . . . . . 92 . . . Highest Corruption 34 | . . 26 1 19 . . . . 1 1 . . 1 1 . 2 . . . 4 4 5 34 11 8 21 Average Corruption 7 | . . 14 1 10 . . . . 1 1 . . 1 1 . 2 . . . 1 4 2 17 1 4 10 Corruption Purged . | . . . . . . . . . . . . . . . . . . . . . . . . . . . Corruption Blocked . | . . . . . . . . . . . . . . . . . . . . . . . . . . . Effects 322 | . . 21 7 96 . . . . 2 1 . . 11 . . . . . . 1 11 11 106 14 16 25 Message Errors 76 | . . 8 1 23 . . . . . . . . 2 . . . . . . . 2 1 24 1 5 9 Matter Fused 76 | . . 6 1 22 . . . . . . . . 5 . . . . . . . 1 . 21 8 4 8 Heat Flow Errors 44 | . . 3 2 14 . . . . 1 . . . . . . . . . . 1 1 3 15 1 1 2 Energy Discharges 35 | . . 1 . 15 . . . . . 1 . . 1 . . . . . . . 4 2 7 1 1 2 Parts Rejected 7 | . . . . 2 . . . . 1 . . . 1 . . . . . . . . . 2 . 1 . Parts Fused 2 | . . . 1 1 . . . . . . . . . . . . . . . . . . . . . . Data Loss (minor) 29 | . . 2 . 9 . . . . . . . . 2 . . . . . . . . 4 10 1 1 . Data Loss (major) 9 | . . 1 1 4 . . . . . . . . . . . . . . . . 1 1 1 . . . Misfires 10 | . . . . . . . . . . . . . . . . . . . . . 1 . 7 2 . . Alerts 10 | . . . . 4 . . . . . . . . . . . . . . . . 1 . 4 . 1 . Misdirections 4 | . . . . 1 . . . . . . . . . . . . . . . . . . 1 . . 2 Weapon Failures 20 | . . . 1 1 . . . . . . . . . . . . . . . . . . 14 . 2 2 Overload Shots 1 | . . . . . . . . . . . . . . 1 . . . . . . . . . . . . Overflow Damage 1778 | . . . . 1569 . . . . . . 3 19 . . 86 21 . . . 11 . . 9 . 21 39 Projectiles 41 | . . . . . . . . . . . . 19 . . . . . . . . . . . . . 22 Explosions 114 | . . . . 32 . . . . . . 3 . . . . 21 . . . 11 . . 9 . 21 17 Melee 1623 | . . . . 1537 . . . . . . . . . . 86 . . . . . . . . . . . Knockbacks 18 | . . 1 . 12 . . . . . . . . . . . 1 . . . . . . 2 1 . 1 Impact 13 | . . . . 10 . . . . . . . . . . . . . . . . . . 2 1 . . Kinetic 3 | . . 1 . . . . . . . . . . . . . 1 . . . . . . . . . 1 Secondary 2 | . . . . 2 . . . . . . . . . . . . . . . . . . . . . . Self-Inflicted Damage 651 | . . . . 1 45 79 . . . . 35 . . . . 70 . . . 32 . . 69 . 184 136 Shots 21 | . . . . . 1 4 . . . . 2 . . . . 1 . . . 1 . . 1 . 7 4 Rammed 13 | . . . . 1 . . . . . . . . . . . . . . . . . . 6 2 4 . Targets Rammed 15 | . . . . 2 . . . . . . . . . . . . . . . . . . 7 2 4 . Kicked . | . . . . . . . . . . . . . . . . . . . . . . . . . . . Crushed 2 | . . . . 1 . . . . . . . . . . . . . . . . . . 1 . . . Highest Temperature 482 | . 30 258 334 405 482 252 97 403 345 . 162 351 200 122 . 7 5 . 4 200 267 467 475 102 474 160 Average Temperature 105 | . 9 86 73 83 137 107 38 97 125 . 51 154 87 58 . 7 4 . 4 86 88 132 127 37 137 56 Received Heat Transfer 6101 | . 318 204 801 930 369 . 34 36 84 . 216 322 260 9 36 180 205 . 54 287 . 75 364 77 1042 198 Effects 33 | . . 1 1 3 2 . . 2 2 . . . . . . . . . . . . 2 15 . 5 . Shutdowns 8 | . . . . 2 1 . . 1 . . . . . . . . . . . . . . 4 . . . Energy Bleed 8 | . . 1 . . 1 . . . 1 . . . . . . . . . . . . 1 3 . 1 . Interference 9 | . . . . 1 . . . . . . . . . . . . . . . . . 1 4 . 3 . Matter Decay 2 | . . . . . . . . . 1 . . . . . . . . . . . . . 1 . . . Short Circuit 2 | . . . 1 . . . . 1 . . . . . . . . . . . . . . . . . . Damage (minor) 1 | . . . . . . . . . . . . . . . . . . . . . . . . . 1 . Damage (major) 3 | . . . . . . . . . . . . . . . . . . . . . . . 3 . . . Siege Activations 12 | . . . . . . . . . . . . . . . . . . . 3 1 . 2 3 . 3 . Total Turns 103 | . . . . . . . . . . . . . . . . . . . 10 1 . 28 34 . 30 . Longest Duration 23 | . . . . . . . . . . . . . . . . . . . 5 1 . 19 23 . 22 . Martial Activations . | . . . . . . . . . . . . . . . . . . . . . . . . . . . Shielding Activations . | . . . . . . . . . . . . . . . . . . . . . . . . . . . Robots Disrupted . | . . . . . . . . . . . . . . . . . . . . . . . . . . . Combat Hostiles . | . . . . . . . . . . . . . . . . . . . . . . . . . . . Robots Corrupted 9 | . . . . 7 . . . . . . . . . . . . . . . . . . . . . 2 Combat Hostiles 6 | . . . . 4 . . . . . . . . . . . . . . . . . . . . . 2 Parts Fried 17 | . . . . 10 . . . . . . 1 . . . . 1 . . . . . . . . 1 4 Impact Corruptions 28 | . . . . 28 . . . . . . . . . . . . . . . . . . . . . . Robots Melted 4 | . . . 1 . 2 . . . . . . . . . . . . . . . . . . . 1 . Combat Hostiles 2 | . . . . . 1 . . . . . . . . . . . . . . . . . . . 1 . Parts Melted 48 | . . . 17 . 15 2 2 3 1 . . 4 1 . . . . . . . . . . . 2 1 Heat Transferred 17385 | 425 75 222 296 . 5424 948 638 1168 1002 . 50 1344 2113 74 . . . . . . . . 472 500 1669 965 Parts Sabotaged 2 | . . . . . . . . . . . . . . . . . . . . 2 . . . . . . Parts Stolen . | . . . . . . . . . . . . . . . . . . . . . . . . . . . Parts Stripped . | . . . . . . . . . . . . . . . . . . . . . . . . . . . Power Chain Reactions 2 | . . . . . . . . . . . . . . . . . . . . . . . . . . 2 Alert | -11 -10 -10 -8 -7 -6 -6 -6 -6 -6 -6 -5 -5 -5 -5 -5 -5 -4 -4 -4 -4 -3 -3 -3 -2 -1 -1 ------- Run | Yrd Mat Sub Mat Fac Fac Was Fac Low Low Zio Pro Fac Ext Cet Arc Hub Fac Upp Upp War Pro Res Tes Res Acc Com Maximum Alert Level 5 | . . . 3 4 3 1 3 . . . . 2 4 3 3 4 3 . . . . 2 3 5 5 5 Low Security (%) 16 | 100 100 . 17 . . . 31 . . . . 55 17 . . . . . . . . 57 9 . . . Level 1 18 | . . . 34 25 . 100 25 . . . . 43 12 . 30 59 . . . . . 9 33 1 . . Level 2 22 | . . . 45 24 50 . 7 . . . . 1 10 . 15 11 20 . . . . 33 34 29 . . Level 3 22 | . . . 2 12 49 . 35 . . . . . 35 100 54 26 79 . . . . . 21 19 42 . Level 4 12 | . . . . 37 . . . . . . . . 23 . . 2 . . . . . . . 25 30 31 Level 5 3 | . . . . . . . . . . . . . . . . . . . . . . . . 7 . 48 High Security 3 | . . . . . . . . . . . . . . . . . . . . . . . . 16 27 19 Max Security . | . . . . . . . . . . . . . . . . . . . . . . . . . . . Peak Influence 2549 | 10 96 . 717 1258 1030 369 912 . . . . 400 1420 898 875 1338 830 . . . . 496 901 1924 2221 2549 Initial 1420 | . . . 43 324 595 353 169 . . . . . 189 785 297 288 655 . . . . 33 266 494 1142 1420 Average 698 | 1 53 . 403 772 743 306 454 . . . . 194 739 810 640 494 742 . . . . 235 457 1109 1368 2034 Influence Increases 22147 | 45 394 340 1384 2055 1445 139 973 139 244 . 592 718 1749 393 718 1372 371 . 90 640 90 999 1373 2028 1703 2153 Destroy 0b10 Robot/C 10180 | . 280 280 840 1100 540 20 260 100 180 . 440 160 760 160 320 260 200 . 80 540 80 560 800 660 760 800 Destroy 0b10 Robot/NC 950 | 45 15 . 120 175 60 . 10 . . . 10 40 20 10 20 110 . . . 10 . 45 60 75 105 20 Destroy Leader 1744 | . 60 . 196 286 120 . 50 10 20 . 40 42 74 . . 60 60 . 10 . 10 120 134 164 152 136 Allied During Kill 2807 | . . . . 19 20 20 313 29 29 . 102 45 800 170 337 24 . . . . . 60 38 205 92 504 Successful Hack 111 | . 9 . 19 64 12 . 7 . . . . . . . . . . . . . . . . . . . Disable Machine 975 | . 15 . 30 165 120 . 30 . . . . . 30 15 15 210 15 . . . . 45 165 30 30 60 Anti-Garrison Action 800 | . . . . . 400 . . . . . . 200 . . . 200 . . . . . . . . . . Destroy Structure 2609 | . . . 29 51 68 99 3 . . . . 60 50 38 26 478 96 . . . . 154 116 864 249 228 Partial Spotted 180 | . . . . . 15 . . . . . . . . . . . . . . . . . . . 60 105 Lose Combat Pursuer 1335 | . 15 60 150 195 90 . . . 15 . . 15 15 . . 30 . . . 90 . 15 60 30 255 300 Miscellaneous 456 | . . . . . . . 300 . . . . 156 . . . . . . . . . . . . . . Influence Decreases 19668 | 45 362 288 753 1554 1652 906 435 637 371 155 592 330 733 1053 637 859 961 468 370 132 548 575 968 1003 1386 1895 Entered New Map 7795 | . . 16 41 391 621 656 73 289 55 155 . . 199 619 447 537 683 278 54 . 508 17 208 385 762 801 Time Decay 8818 | 45 352 207 612 723 601 230 222 238 286 . 482 240 474 334 100 302 278 190 306 132 40 538 620 458 404 404 Lost Part 1235 | . 10 65 100 390 30 . . . . . 50 10 20 . 30 . . . 10 . . . 90 100 160 170 Lost Ally 1520 | . . . . 50 100 20 140 110 30 . 60 80 40 100 60 20 . . . . . 20 50 60 60 520 Purge Threat 300 | . . . . . 300 . . . . . . . . . . . . . . . . . . . . . Squads Dispatched 157 | . 3 . 12 25 8 . 4 . . . . 2 4 . . 6 7 . . . . 5 18 20 19 24 Investigation 16 | . 2 . 2 2 2 . 1 . . . . 1 1 . . 1 . . . . . 2 . . . 2 Extermination 26 | . . . . 9 . . 1 . . . . 1 . . . 1 1 . . . . 2 5 3 . 3 Reinforcement 52 | . 1 . 9 7 4 . 1 . . . . . 3 . . 4 1 . . . . 1 8 4 2 7 Assault 52 | . . . 1 4 1 . 1 . . . . . . . . . 2 . . . . . 2 12 17 12 Garrison 11 | . . . . 3 1 . . . . . . . . . . . 3 . . . . . 3 1 . . Intercept . | . . . . . . . . . . . . . . . . . . . . . . . . . . . Searches Triggered . | . . . . . . . . . . . . . . . . . . . . . . . . . . . Construction Impeded 9 | . . . 1 2 . . . . . . . . 1 . . 1 . . . . . . 1 2 1 . Haulers Reinforced 3 | . . . . 1 . . . . . . . . . . . . 1 . . . . . 1 . . . Active Scanning Responses . | . . . . . . . . . . . . . . . . . . . . . . . . . . . Cargo Convoy Interrupts 1 | . . . . 1 . . . . . . . . . . . . . . . . . . . . . . Stealth | -11 -10 -10 -8 -7 -6 -6 -6 -6 -6 -6 -5 -5 -5 -5 -5 -5 -4 -4 -4 -4 -3 -3 -3 -2 -1 -1 --------- Run | Yrd Mat Sub Mat Fac Fac Was Fac Low Low Zio Pro Fac Ext Cet Arc Hub Fac Upp Upp War Pro Res Tes Res Acc Com Distress Signals 44 | . 1 . 5 7 2 . . . . . . . 1 2 . 3 . . . 1 . 1 4 . 10 7 Communications Jammed 96 | . . . . . . . . . . . . . . . . . . . . . . . . . 96 . Distress Signals 84 | . . . . . . . . . . . . . . . . . . . . . . . . . 84 . Times Spotted 893 | . 25 26 78 109 53 8 11 9 13 . 22 17 40 9 25 18 10 . 5 92 4 37 65 50 91 76 Peak Tracking Total 20 | . 4 6 9 14 7 4 3 4 6 . 5 4 7 5 16 7 4 . 3 20 4 7 8 9 14 13 Tactical Retreats 58 | . 1 3 9 13 3 1 . . 1 . . 1 1 . . 2 . . . 2 . 1 3 1 6 10 ECM-based Alert Blocks 4 | . . . . 4 . . . . . . . . . . . . . . . . . . . . . . Traps | -11 -10 -10 -8 -7 -6 -6 -6 -6 -6 -6 -5 -5 -5 -5 -5 -5 -4 -4 -4 -4 -3 -3 -3 -2 -1 -1 ------- Run | Yrd Mat Sub Mat Fac Fac Was Fac Low Low Zio Pro Fac Ext Cet Arc Hub Fac Upp Upp War Pro Res Tes Res Acc Com Traps Triggered 21 | . 1 4 2 . 1 . . . . . . 2 2 . . . . . . . . . 2 . 2 5 Indirectly . | . . . . . . . . . . . . . . . . . . . . . . . . . . . Trap Hack Attempts . | . . . . . . . . . . . . . . . . . . . . . . . . . . . Triggered . | . . . . . . . . . . . . . . . . . . . . . . . . . . . Disarmed . | . . . . . . . . . . . . . . . . . . . . . . . . . . . Reprogrammed . | . . . . . . . . . . . . . . . . . . . . . . . . . . . Reused . | . . . . . . . . . . . . . . . . . . . . . . . . . . . Traps Extracted . | . . . . . . . . . . . . . . . . . . . . . . . . . . . Installed . | . . . . . . . . . . . . . . . . . . . . . . . . . . . Triggered . | . . . . . . . . . . . . . . . . . . . . . . . . . . . Machines | -11 -10 -10 -8 -7 -6 -6 -6 -6 -6 -6 -5 -5 -5 -5 -5 -5 -4 -4 -4 -4 -3 -3 -3 -2 -1 -1 ---------- Run | Yrd Mat Sub Mat Fac Fac Was Fac Low Low Zio Pro Fac Ext Cet Arc Hub Fac Upp Upp War Pro Res Tes Res Acc Com Machines Disabled 75 | . 1 2 2 11 8 . 2 1 1 . 1 . 4 1 1 14 1 . . 1 . 3 13 2 2 4 Max in Single Turn 5 | . 1 1 1 1 5 . . 1 1 . 1 . 1 1 1 5 1 . . 1 . 1 2 1 1 . Garrison Access 5 | . . . . . 2 . . . . . . 1 . . . 1 . . . . . . . 1 . . Network Hub 2 | . . . . . . . . . . . . . . . . 2 . . . . . . . . . . Energy Cycler 2 | . . . . . . . . . . . . . 1 . . . . . . . . . . . 1 . Machines Repaired . | . . . . . . . . . . . . . . . . . . . . . . . . . . . Machines Dismantled 2 | . . . . . . . . . . . . . 2 . . . . . . . . . . . . . Machines Sabotaged . | . . . . . . . . . . . . . . . . . . . . . . . . . . . Overloaded Fab Kills . | . . . . . . . . . . . . . . . . . . . . . . . . . . . Hacking | -11 -10 -10 -8 -7 -6 -6 -6 -6 -6 -6 -5 -5 -5 -5 -5 -5 -4 -4 -4 -4 -3 -3 -3 -2 -1 -1 --------- Run | Yrd Mat Sub Mat Fac Fac Was Fac Low Low Zio Pro Fac Ext Cet Arc Hub Fac Upp Upp War Pro Res Tes Res Acc Com Machines Accessed 40 | . 5 1 3 11 5 . 1 3 1 . 1 2 1 . 1 1 . . . 1 . . 1 . . 2 Terminals 20 | . 5 . 3 5 1 . 1 . . . . 1 1 . . . . . . . . . 1 . . 2 Fabricators 2 | . . . . 2 . . . . . . . . . . . . . . . . . . . . . . Repair Stations 1 | . . . . 1 . . . . . . . . . . . . . . . . . . . . . . Recycling Units . | . . . . . . . . . . . . . . . . . . . . . . . . . . . Scanalyzers 3 | . . . . 2 1 . . . . . . . . . . . . . . . . . . . . . Garrison Access 6 | . . . . 1 3 . . . . . . 1 . . . 1 . . . . . . . . . . Total Hacks 116 | . 12 4 11 24 13 . 2 5 1 . 1 3 1 . 25 2 . . . 1 . . 3 . . 8 Successful 66 | . 6 4 2 9 6 . 1 5 1 . 1 2 . . 25 1 . . . 1 . . 1 . . 1 Failed 49 | . 6 . 9 15 6 . 1 . . . . 1 1 . . 1 . . . . . . 2 . . 7 Catastrophic 12 | . 1 . 2 3 2 . . . . . . . . . . . . . . . . . 1 . . 3 Database Lockouts 1 | . . . . . 1 . . . . . . . . . . . . . . . . . . . . . Manual 102 | . 13 . 7 10 8 . 2 . . . . 11 13 1 . 4 . . . . . 5 10 5 4 9 Terminals 55 | . 12 . 11 12 4 . 2 . . . . 2 1 . . . . . . . . . 3 . . 8 Fabricators 2 | . . . . 2 . . . . . . . . . . . . . . . . . . . . . . Repair Stations 1 | . . . . 1 . . . . . . . . . . . . . . . . . . . . . . Recycling Units . | . . . . . . . . . . . . . . . . . . . . . . . . . . . Scanalyzers 11 | . . . . 7 4 . . . . . . . . . . . . . . . . . . . . . Garrison Access 10 | . . . . 2 5 . . . . . . 1 . . . 2 . . . . . . . . . . Terminal Hacks 49 | . 2 4 1 2 3 . 1 5 1 . 1 1 . . 25 . . . . 1 . . 1 . . 1 Record 33 | . . 4 . . . . . 3 . . 1 . . . 25 . . . . . . . . . . . Robot Analysis 3 | . 2 . . 1 . . . . . . . . . . . . . . . . . . . . . . Open Door 6 | . . . . . . . . 2 1 . . 1 . . . . . . . 1 . . 1 . . . Branch Access Points 3 | . . . 1 1 . . 1 . . . . . . . . . . . . . . . . . . . Alert Level 1 | . . . . . 1 . . . . . . . . . . . . . . . . . . . . . Unreport Threat 2 | . . . . . 2 . . . . . . . . . . . . . . . . . . . . . Disengage Seal 1 | . . . . . . . . . . . . . . . . . . . . . . . . . . 1 Fabricator Hacks 1 | . . . . 1 . . . . . . . . . . . . . . . . . . . . . . Network Status 1 | . . . . 1 . . . . . . . . . . . . . . . . . . . . . . Repair Station Hacks . | . . . . . . . . . . . . . . . . . . . . . . . . . . . Recycling Unit Hacks . | . . . . . . . . . . . . . . . . . . . . . . . . . . . Scanalyzer 4 | . . . . 3 1 . . . . . . . . . . . . . . . . . . . . . Retrieve Study 4 | . . . . 3 1 . . . . . . . . . . . . . . . . . . . . . Garrison Access Hacks . | . . . . . . . . . . . . . . . . . . . . . . . . . . . Unauthorized Hacks 12 | . 4 . 1 3 2 . . . . . . 1 . . . 1 . . . . . . . . . . Terminals 7 | . 4 . 1 2 . . . . . . . . . . . . . . . . . . . . . . Assimilate 1 | . . . . 1 . . . . . . . . . . . . . . . . . . . . . . Botnet 4 | . 2 . 1 1 . . . . . . . . . . . . . . . . . . . . . . Operators 1 | . 1 . . . . . . . . . . . . . . . . . . . . . . . . . Search 1 | . 1 . . . . . . . . . . . . . . . . . . . . . . . . . Fabricators . | . . . . . . . . . . . . . . . . . . . . . . . . . . . Repair Stations 1 | . . . . 1 . . . . . . . . . . . . . . . . . . . . . . Patch 1 | . . . . 1 . . . . . . . . . . . . . . . . . . . . . . Recycling Units . | . . . . . . . . . . . . . . . . . . . . . . . . . . . Scanalyzers . | . . . . . . . . . . . . . . . . . . . . . . . . . . . Garrison Access 4 | . . . . . 2 . . . . . . 1 . . . 1 . . . . . . . . . . Jam 4 | . . . . . 2 . . . . . . 1 . . . 1 . . . . . . . . . . Data Cores Recovered 2 | . . . . 1 . . 1 . . . . . . . . . . . . . . . . . . . Used . | . . . . . . . . . . . . . . . . . . . . . . . . . . . Hacking Detections 23 | . 2 . 3 9 5 . 1 . . . . 1 1 . . . . . . . . . . . . 1 Full Trace Events 5 | . 1 . 2 1 . . . . . . . . . . . . . . . . . . . . . 1 Feedback Events . | . . . . . . . . . . . . . . . . . . . . . . . . . . . Feedback Blocked . | . . . . . . . . . . . . . . . . . . . . . . . . . . . Robot Schematics Acquired 1 | . . . . . . . . . . . . . . . . . . . . . . . 1 . . . Robots Built . | . . . . . . . . . . . . . . . . . . . . . . . . . . . Authchips . | . . . . . . . . . . . . . . . . . . . . . . . . . . . Time . | . . . . . . . . . . . . . . . . . . . . . . . . . . . Total Robot Build Rating . | . . . . . . . . . . . . . . . . . . . . . . . . . . . Part Schematics Acquired 16 | . . . . . . . . . . . . . . . . . . . . . . . 16 . . . Parts Built . | . . . . . . . . . . . . . . . . . . . . . . . . . . . Authchips . | . . . . . . . . . . . . . . . . . . . . . . . . . . . Time . | . . . . . . . . . . . . . . . . . . . . . . . . . . . Total Part Build Rating . | . . . . . . . . . . . . . . . . . . . . . . . . . . . Part Studies Acquired 4 | . . . . 3 1 . . . . . . . . . . . . . . . . . . . . . Parts Repaired . | . . . . . . . . . . . . . . . . . . . . . . . . . . . Time . | . . . . . . . . . . . . . . . . . . . . . . . . . . . Parts Recycled . | . . . . . . . . . . . . . . . . . . . . . . . . . . . Recycled Matter . | . . . . . . . . . . . . . . . . . . . . . . . . . . . Retrieved Matter . | . . . . . . . . . . . . . . . . . . . . . . . . . . . Retrieved Components . | . . . . . . . . . . . . . . . . . . . . . . . . . . . Parts Scanalyzed . | . . . . . . . . . . . . . . . . . . . . . . . . . . . Part Schematics Acquired . | . . . . . . . . . . . . . . . . . . . . . . . . . . . Parts Damaged . | . . . . . . . . . . . . . . . . . . . . . . . . . . . Bothacking | -11 -10 -10 -8 -7 -6 -6 -6 -6 -6 -6 -5 -5 -5 -5 -5 -5 -4 -4 -4 -4 -3 -3 -3 -2 -1 -1 ------------ Run | Yrd Mat Sub Mat Fac Fac Was Fac Low Low Zio Pro Fac Ext Cet Arc Hub Fac Upp Upp War Pro Res Tes Res Acc Com Used RIF Installer . | . . . . . . . . . . . . . . . . . . . . . . . . . . . Robots Hacked . | . . . . . . . . . . . . . . . . . . . . . . . . . . . Non-combat . | . . . . . . . . . . . . . . . . . . . . . . . . . . . Combat . | . . . . . . . . . . . . . . . . . . . . . . . . . . . Robot Hacks Applied . | . . . . . . . . . . . . . . . . . . . . . . . . . . . Relay Couplers Released 3 | . . . . . . . . . . . . . . . . . . . . . . . . 3 . . Machine Destruction 3 | . . . . . . . . . . . . . . . . . . . . . . . . 3 . . Fabnet Peak Effective % . | . . . . . . . . . . . . . . . . . . . . . . . . . . . Robots Rewired 14 | . . . . . . . . . . . . . 14 . . . . . . . . . . . . . Allies Hacked 7 | . . . . 2 . . . . . . . . . . . . . . . . . . 1 . . 4 Hacks Repelled . | . . . . . . . . . . . . . . . . . . . . . . . . . . . Allies | -11 -10 -10 -8 -7 -6 -6 -6 -6 -6 -6 -5 -5 -5 -5 -5 -5 -4 -4 -4 -4 -3 -3 -3 -2 -1 -1 -------- Run | Yrd Mat Sub Mat Fac Fac Was Fac Low Low Zio Pro Fac Ext Cet Arc Hub Fac Upp Upp War Pro Res Tes Res Acc Com Total Allies 132 | . . . . 5 5 19 . . . 4 . 8 24 14 . 1 . . . . . 4 4 6 4 34 Largest Group 25 | . . . . 1 4 19 16 9 2 4 4 5 25 24 20 1 . . . . . 3 4 3 2 16 Highest-Rated Group 1269 | . . . . 142 116 684 557 293 73 159 159 380 925 1269 1176 148 . . . . . 150 120 382 198 1166 Highest-Rated Ally 269 | . . . . 142 29 50 46 46 46 41 41 85 159 143 143 148 . . . . . 50 30 138 99 269 Zionite Dispatches 10 | . . . . . . . . . . . . 2 3 . . . . . . . . 1 . 2 2 . Heavy 2 | . . . . . . . . . . . . 1 . . . . . . . . . . . 1 . . Light 1 | . . . . . . . . . . . . 1 . . . . . . . . . . . . . . Fire 1 | . . . . . . . . . . . . . 1 . . . . . . . . . . . . . Hero 1 | . . . . . . . . . . . . . . . . . . . . . . . . 1 . . Kinetic Resupply 3 | . . . . . . . . . . . . . 2 . . . . . . . . . . . 1 . Offense Resupply 1 | . . . . . . . . . . . . . . . . . . . . . . . . . 1 . Heavy Resupply 1 | . . . . . . . . . . . . . . . . . . . . . . 1 . . . . Total Orders 6 | . . . . . . . . . . . . . 2 1 . . . . . . . 1 . . 2 . DROP 5 | . . . . . . . . . . . . . 2 . . . . . . . . 1 . . 2 . COLLECT 1 | . . . . . . . . . . . . . . 1 . . . . . . . . . . . . Ally Attacks 883 | . . . . 26 33 59 86 22 11 . 31 46 133 45 77 29 . . . . . 13 19 38 29 186 Total Damage 33759 | . . . . 1605 406 1618 1366 639 182 . 1318 1035 2980 1965 3655 734 . . . . . 608 351 5939 991 8367 Kills 174 | . . . . 6 1 4 9 3 3 . 7 8 22 12 19 6 . . . . . 2 2 27 3 40 Allies Corrupted 12 | . . . . . 1 . . 2 . . . 1 . . 1 . . . . . . 1 1 . . 5 Allies Melted . | . . . . . . . . . . . . . . . . . . . . . . . . . . . X0-1V1 Amusement Gains 698 | . 20 23 26 101 10 . . . . . 25 . 50 . 75 30 30 . . 80 20 15 58 42 52 41 Good Acts 218 | . . 23 16 26 16 4 . . . . 8 3 4 7 1 7 5 . 3 3 2 10 20 9 20 31 Bad Acts 124 | . . 29 10 17 7 1 5 8 6 . 6 5 4 1 . . 2 . 2 1 . 5 5 3 4 3 Intel | -11 -10 -10 -8 -7 -6 -6 -6 -6 -6 -6 -5 -5 -5 -5 -5 -5 -4 -4 -4 -4 -3 -3 -3 -2 -1 -1 ------- Run | Yrd Mat Sub Mat Fac Fac Was Fac Low Low Zio Pro Fac Ext Cet Arc Hub Fac Upp Upp War Pro Res Tes Res Acc Com Active Infowar (turns) 19465 | 204 1018 . 22 1975 . 50 . . . 147 1430 896 1205 743 209 677 611 392 747 1317 343 1538 2073 1373 1319 1176 Optics 15834 | . . . . . . . . . . 147 1430 896 1205 743 209 677 611 392 747 1317 343 1538 1711 1373 1319 1176 Terrain 2948 | . . . . . . . . . . . . . . . . . . . . . . 121 743 1372 712 . Seismic 3614 | 204 1018 . . 1052 . . . . . . . . . . . . . . . . . . . . 482 858 Triangulation 22 | . . . 22 . . . . . . . . . . . . . . . . . . . . . . . Cloaking 709 | . . . . . . . . . . . . . . . . . . . . 38 . 671 . . . . Jamming 770 | . . . . . . 50 . . . . . . . . . . . . . . . . . . 720 . ECM 924 | . . . . 923 . . . . . . . . . . . . . . . . . . 1 . . . Robot Analysis Total 3 | . 2 . . 1 . . . . . . . . . . . . . . . . . . . . . . Derelict Logs Recovered 6 | . . 1 . . . . . . 1 1 2 . . . . . . 1 . . . . . . . . Drone Launches . | . . . . . . . . . . . . . . . . . . . . . . . . . . . Drone Recoveries . | . . . . . . . . . . . . . . . . . . . . . . . . . . . Zionite Intel Received 6 | . . . . . . . . . . . . 1 1 . . . . . . . . . 2 . . 2 Branch Access 1 | . . . . . . . . . . . . 1 . . . . . . . . . . . . . . Emergency Access 1 | . . . . . . . . . . . . . . . . . . . . . . . . . . 1 Component Stockpiles 1 | . . . . . . . . . . . . . . . . . . . . . . . . . . 1 Prototype Schematics 1 | . . . . . . . . . . . . . . . . . . . . . . . 1 . . . Unaware Analyses 1 | . . . . . . . . . . . . . 1 . . . . . . . . . . . . . Active Garrisons 1 | . . . . . . . . . . . . . . . . . . . . . . . 1 . . . Exploration | -11 -10 -10 -8 -7 -6 -6 -6 -6 -6 -6 -5 -5 -5 -5 -5 -5 -4 -4 -4 -4 -3 -3 -3 -2 -1 -1 ------------- Run | Yrd Mat Sub Mat Fac Fac Was Fac Low Low Zio Pro Fac Ext Cet Arc Hub Fac Upp Upp War Pro Res Tes Res Acc Com Turns Passed 31093 | 280 1026 2666 2018 3446 1929 493 474 513 637 1511 1430 896 1205 743 209 677 611 392 747 1317 343 1538 2085 1373 1319 1215 Spaces Moved 19105 | 164 437 1609 995 2252 1337 314 351 396 493 1291 1118 643 472 234 111 341 316 246 432 657 201 754 884 728 846 1483 Core 2347 | 11 . . . 445 100 . . . . . . . . . . . . . . . . . . . 521 1270 Treads 8194 | 21 437 1240 545 445 . . . . . . . . 65 234 111 341 316 246 432 657 201 754 884 728 324 213 Legs 5023 | . . . . 1214 284 314 351 396 493 1291 680 . . . . . . . . . . . . . . . Wheels 3541 | 132 . 369 450 148 953 . . . . . 438 643 407 . . . . . . . . . . . 1 . Hover . | . . . . . . . . . . . . . . . . . . . . . . . . . . . Flight . | . . . . . . . . . . . . . . . . . . . . . . . . . . . Fastest Speed 50 | 50 160 100 90 50 50 111 110 110 111 111 114 115 130 160 160 160 160 160 160 160 162 150 157 154 50 50 Average Speed 127 | 96 175 149 135 111 110 129 110 110 111 111 117 127 146 160 160 160 160 160 160 160 162 160 163 157 99 64 Slowest Speed 320 | 160 240 240 320 240 178 181 111 114 111 114 130 145 160 160 160 160 160 160 160 165 162 170 260 212 265 300 Overloaded Moves . | . . . . . . . . . . . . . . . . . . . . . . . . . . . Propulsion Burnouts . | . . . . . . . . . . . . . . . . . . . . . . . . . . . Robots Hopped . | . . . . . . . . . . . . . . . . . . . . . . . . . . . Potential Cave-ins 11 | . . . . 1 . 1 . . . . . . . . . . . . . . . . . . . 9 Cave-ins Triggered 1 | . . . . . . . . . . . . . . . . . . . . . . . . . . 1 Exploration Rate (%) 56 | 5 76 95 72 56 35 87 14 48 68 89 94 16 83 68 100 42 7 51 64 80 59 20 84 21 29 50 Regions Visited 26 Branch Regions 15 Pre-discovered Areas 2 | . . 1 . . . . . . . . . . . . . . . 1 . . . . . . . . Known Exits Taken 10 | . . 1 1 1 . . 1 . . . 1 1 . . . . . . 1 . 1 . 1 . 1 . Unknown Exits Taken 14 | 1 1 . . . . . . 1 1 1 . . 1 1 1 1 1 1 . 1 . 1 . 1 . . Scrap Searched 24 | . . 6 . . . . . . 3 5 3 . . . . . . 3 3 . 1 . . . . . Spaces Dug 35 | . . . 1 7 . . . . . . . . . . . 11 . . . . . 3 . 2 5 6 Terrain Destroyed 1424 | . . 3 40 40 76 206 1 6 29 . 159 2 17 . 1 355 69 . 16 63 13 93 74 51 78 32 Melee 15 | . . . 1 7 . . . . . . . . . . . 2 . . . . . . . . 5 . Projectile 451 | . . 3 4 1 5 3 1 6 13 . 1 2 17 . 1 38 69 . 16 35 13 92 45 51 5 30 AOE 953 | . . . 34 32 71 203 . . 16 . 158 . . . . 315 . . . 28 . . 26 . 68 2 Terrain Rammed . | . . . . . . . . . . . . . . . . . . . . . . . . . . . Walls Destroyed . | . . . . . . . . . . . . . . . . . . . . . . . . . . . Machines Disabled . | . . . . . . . . . . . . . . . . . . . . . . . . . . . Actions | -11 -10 -10 -8 -7 -6 -6 -6 -6 -6 -6 -5 -5 -5 -5 -5 -5 -4 -4 -4 -4 -3 -3 -3 -2 -1 -1 --------- Run | Yrd Mat Sub Mat Fac Fac Was Fac Low Low Zio Pro Fac Ext Cet Arc Hub Fac Upp Upp War Pro Res Tes Res Acc Com Total 23351 | 231 583 1758 1365 2805 1632 367 416 428 536 1371 1205 691 910 590 134 392 363 245 467 839 210 941 1228 826 1133 1685 Wait 1614 | 27 71 38 128 220 123 29 45 6 10 38 15 7 125 329 . 2 8 . 21 106 1 28 115 12 45 65 Move 19080 | 163 436 1608 994 2252 1337 313 350 395 492 1290 1117 642 471 233 110 340 315 245 431 656 200 753 883 727 845 1482 Hop . | . . . . . . . . . . . . . . . . . . . . . . . . . . . Pick Up 258 | 4 11 15 14 29 28 3 4 4 3 8 14 5 10 3 7 11 2 . 2 9 . 23 19 10 13 7 Fast Attach 242 | 9 1 4 21 37 24 1 1 . 3 9 2 7 5 4 1 1 8 . 1 14 1 15 18 5 29 21 Attach 124 | . 1 12 6 19 5 . 1 2 1 . 5 6 . . 2 . 1 . 2 2 1 5 7 10 24 12 Detach 90 | 2 . 3 11 2 5 . . . 1 5 1 5 . 1 . . 1 . . . 2 4 7 1 24 15 Swap 149 | . 3 6 11 10 11 5 2 1 3 7 4 5 4 8 6 4 . . 1 5 . 20 12 5 13 3 Drop 259 | . 3 6 13 10 24 2 4 3 4 14 16 3 9 7 5 4 6 . 1 16 1 35 25 3 25 20 Fire 1080 | 26 57 66 166 80 74 14 9 17 19 . 27 11 28 5 2 28 22 . 8 30 4 58 135 51 91 52 Melee 157 | . . . 1 144 . . . . . . 3 . . . 1 2 . . . 1 . . . . 5 . Ram 4 | . . . . 1 . . . . . . . . . . . . . . . . . . . . 3 . Kick . | . . . . . . . . . . . . . . . . . . . . . . . . . . . Crush 11 | . . . . 1 . . . . . . . . . . . . . . . . . . 7 2 1 . Escape Stasis 28 | . . . . . . . . . . . . . 5 . . . . . . . . . . . 15 8 Rewire 239 | . . . . . 1 . . . . . 1 . 237 . . . . . . . . . . . . . Trap . | . . . . . . . . . . . . . . . . . . . . . . . . . . . Miscellaneous 16 | . . . . . . . . . . . . . 16 . . . . . . . . . . . . . Route ------- -11/Scrapyard -10/Materials (discovered 2 exits: [*Min] / *Sub) -10/Subcaves (discovered 2 exits: *Mat / [*Rec]) -8/Materials -7/Factory (discovered 4 exits: *Fac x2 / Low x2) -6/Factory (discovered 3 exits: Fac x2 / *Low) -6/Waste -6/Factory (discovered 3 exits: *Fac / *Low x2) -6/Lower Caves -6/Lower Caves -6/Zion -5/Proximity Caves -5/Factory (discovered 4 exits: Upp x2 / *Ext x2) -5/Extension (discovered 3 exits: [*Fac x2] / *Cet) -5/Cetus (discovered 2 exits: [*Fac] / *Arc) -5/Archives (discovered 3 exits: [*Fac] / *Hub x2) -5/Hub_04(d) (discovered 2 exits: [*Fac x2]) -4/Factory -4/Upper Caves -4/Upper Caves -4/Warlord -3/Proximity Caves -3/Research (discovered 3 exits: *Res / Arm / *Tes) -3/Testing -2/Research -1/Access (discovered 2 exits: Sur / *Com) -1/Command (discovered 3 exits: *Sur x2 / Ac0) History --------- Turn | Location | Event 3 | -11/Scrapyard | Discovered new exit (range 15) 281 | -11/Scrapyard | Entered Materials 301 | -10/Materials | Build established: Mutant 860 | -10/Materials | Discovered new exit (range 9) 1273 | -10/Materials | Discovered new exit (range 10) 1294 | -10/Materials | Prayed at D.C.S.S. Altar Unit 1307 | -10/Materials | Entered Subcaves 1345 | -10/Subcaves | Core integrity fell below 50% 1596 | -10/Subcaves | X0-1V1 activates XOMVISION 1818 | -10/Subcaves | Discovered new exit (range 12) 2240 | -10/Subcaves | Disturbed a concealed Subdweller 2337 | -10/Subcaves | Discovered new exit (range 12) 2684 | -10/Subcaves | System corruption reached 10% 2937 | -10/Subcaves | X0-1V1 mutated your Weapon slot to Propulsion slot 3088 | -10/Subcaves | Utility slot count permanently improved by X0-1V1 (+1) 3105 | -10/Subcaves | X0-1V1 activates XOMVISION 3108 | -10/Subcaves | Ambushed by Subdwellers from Twisted Machinery 3138 | -10/Subcaves | X0-1V1 mutated your Utility slot to Power slot 3158 | -10/Subcaves | X0-1V1 whisked you away to safety 3179 | -10/Subcaves | Identified exit to Materials 3179 | -10/Subcaves | X0-1V1 revealed exit location to -8/Materials 3185 | -10/Subcaves | Core integrity restored by X0-1V1 (+47) 3199 | -10/Subcaves | X0-1V1 tapped a No Entrance sign 3228 | -10/Subcaves | Visited 4L-MR0's lab 3251 | -10/Subcaves | X0-1V1 mutated your Propulsion slot to Weapon slot 3257 | -10/Subcaves | Found Prototype Leg 3261 | -10/Subcaves | Found Prototype Device 3261 | -10/Subcaves | Identified Sfc. Transmogrifier 3274 | -10/Subcaves | X0-1V1 sent hostile S-10 Pest (x5) 3304 | -10/Subcaves | Core integrity fell below 20% 3325 | -10/Subcaves | X0-1V1 activates XOMVISION 3354 | -10/Subcaves | X0-1V1 sent hostile G-34 Mercenary (x4) 3367 | -10/Subcaves | Core integrity restored by X0-1V1 (+57) 3611 | -10/Subcaves | X0-1V1 whisked you away to safety 3652 | -10/Subcaves | Core integrity restored by X0-1V1 (+37) 3872 | -10/Subcaves | Visited Clippyterm 3875 | -10/Subcaves | Learned Research machine intel 3955 | -10/Subcaves | Shifting Twisted Machinery released Sub. Shrapnel Launcher 3973 | -10/Subcaves | Entered Materials 3973 | -8/Materials | Evolved 4 slots: Propulsion x3, Utility x1 3974 | -8/Materials | Identified exit to Factory 3974 | -8/Materials | X0-1V1 revealed exit location to -7/Factory 4648 | -8/Materials | Core integrity permanently improved by X0-1V1 (+400) 4883 | -8/Materials | X0-1V1 announced a LAN party 4891 | -8/Materials | Discovered exit to Factory (range 17) 4912 | -8/Materials | X0-1V1 tapped a No Entrance sign 5080 | -8/Materials | Build established: Scavenger-Mutant 5272 | -8/Materials | Lost 3 parts (3n) 5393 | -8/Materials | X0-1V1 foreshadows a heat wave 5590 | -8/Materials | Ambient heat levels rising (+10) 5697 | -8/Materials | X0-1V1 activates XOMVISION 5762 | -8/Materials | Ambient heat levels rising (+10) 5908 | -8/Materials | Ambient heat levels falling (-10) 5973 | -8/Materials | First assault squad dispatched 5991 | -8/Materials | Entered Factory 5991 | -7/Factory | Evolved 2 slots: Utility x1, Weapon x1 6032 | -7/Factory | X0-1V1 mutated your Propulsion slot to Utility slot 6032 | -7/Factory | X0-1V1 vaporized surrounding terrain (radius 17) 6105 | -7/Factory | Garrison activated, responded to threat 6132 | -7/Factory | X0-1V1 sent hostile X-57 Shotgunner (x2) 6268 | -7/Factory | Build established: Scavenger-Gunner 6807 | -7/Factory | X0-1V1 sent hostile G-47 Trooper (x3) 6897 | -7/Factory | Discovered new exit (range 11) 7074 | -7/Factory | Cargo convoy interrupted 7090 | -7/Factory | X0-1V1 sent allied Chaos Knight (x1) 7130 | -7/Factory | Destroyed 12 combat bots 7161 | -7/Factory | Released all parts (2) 7179 | -7/Factory | Identified Arachnoskeleton 7180 | -7/Factory | Attached Arachnoskeleton, gained temporary slots: Propulsion x3 7189 | -7/Factory | Lost 16 parts (2p5n5u4w) 7199 | -7/Factory | X0-1V1 redirected Transport squads to designated parking area 7356 | -7/Factory | Energy generation permanently improved by X0-1V1 (+10; -100 max core) 7477 | -7/Factory | Build established: Gladiator 7618 | -7/Factory | X0-1V1 upgraded hostiles (x1) 7664 | -7/Factory | Identified exit to Lower Caves 7826 | -7/Factory | System corruption reached 10% 7991 | -7/Factory | First assault squad dispatched 8062 | -7/Factory | X0-1V1 activates XOMVISION 8104 | -7/Factory | Core integrity fell below 50% 8120 | -7/Factory | X0-1V1 sent allied H-71 Marshal (x1) 8179 | -7/Factory | Lost 4 parts (1p1n2u) 8236 | -7/Factory | Build established: Mutant 8504 | -7/Factory | X0-1V1 activates XOMVISION 8900 | -7/Factory | Lost 4 parts (1p2n1u) 9049 | -7/Factory | X0-1V1 sent you to a vault 9124 | -7/Factory | X0-1V1 sent hostile H-61 Shepherd (x1) 9162 | -7/Factory | Core integrity fell below 20% 9183 | -7/Factory | Released all parts (9) 9213 | -7/Factory | Lost 5 parts (1p3n1u) 9283 | -7/Factory | X0-1V1 upgraded hostiles (x1) 9346 | -7/Factory | Identified exit to Factory 9346 | -7/Factory | X0-1V1 revealed exit location to -6/Factory 9419 | -7/Factory | X0-1V1 turns hostiles against one another 9420 | -7/Factory | P-60 Hacker assimilated hostile H-55 Commando 9429 | -7/Factory | Core integrity restored by X0-1V1 (+230) 9437 | -7/Factory | Entered another Factory area 9437 | -6/Factory | Evolved 2 slots: Propulsion x1, Weapon x1 9567 | -6/Factory | X0-1V1 sent you to a vault 9687 | -6/Factory | Lost 4 allies 9773 | -6/Factory | Discovered new exit (range 5) 9777 | -6/Factory | Identified exit to Lower Caves 9847 | -6/Factory | Garrison activated, responded to threat 9988 | -6/Factory | Identified exit to Factory 9988 | -6/Factory | X0-1V1 revealed exit location to -5/Factory 10040 | -6/Factory | Spotted B-75 Beast 10137 | -6/Factory | First assault squad dispatched 10149 | -6/Factory | Build established: Gunner 10360 | -6/Factory | X0-1V1 activates XOMVISION 10746 | -6/Factory | Build established: Scavenger-Gunner 10823 | -6/Factory | X0-1V1 activates XOMVISION 10856 | -6/Factory | Found Prototype Launcher 10856 | -6/Factory | Identified Scatter Rocket Array 10883 | -6/Factory | X0-1V1 redirected Transport squads to designated parking area 11028 | -6/Factory | Central database locked down 11212 | -6/Factory | X0-1V1 turns hostiles against one another 11236 | -6/Factory | X0-1V1 mutated your Utility slot to Weapon slot 11295 | -6/Factory | X0-1V1 whisked you away to safety 11335 | -6/Factory | X0-1V1 revealed exit location to -5/Factory 11366 | -6/Factory | Sucked down chute 11366 | -6/Factory | Entered Waste 11389 | -6/Waste | Spotted C-40 Crusher 11427 | -6/Waste | Spotted C-40 Crusher 11430 | -6/Waste | Spotted C-40 Crusher 11441 | -6/Waste | Spotted C-40 Crusher 11467 | -6/Waste | Destroyed C-40 Crusher 11479 | -6/Waste | Destroyed C-40 Crusher 11486 | -6/Waste | Spotted C-40 Crusher 11494 | -6/Waste | Spotted C-40 Crusher 11518 | -6/Waste | Destroyed C-40 Crusher 11547 | -6/Waste | X0-1V1 activates XOMVISION 11575 | -6/Waste | Warlord forces began an assault 11587 | -6/Waste | Allies destroyed C-40 Crusher 11588 | -6/Waste | Allies destroyed C-40 Crusher 11592 | -6/Waste | Allies destroyed C-40 Crusher 11758 | -6/Waste | Prototype Energy Cannon reconfigured into Item Mimic 11783 | -6/Waste | Discovered new exit (range 15) 11859 | -6/Waste | Entered Factory 11859 | -6/Factory | Accompanied by 16 allies 11971 | -6/Factory | X0-1V1 mutated your Weapon slot to Propulsion slot 12140 | -6/Factory | Discovered exit to Factory (range 11) 12165 | -6/Factory | X0-1V1 added 0b10 threat records associated with you (major) 12209 | -6/Factory | First assault squad dispatched 12333 | -6/Factory | Entered Lower Caves 12333 | -6/Lower Caves | Accompanied by 9 allies 12452 | -6/Lower Caves | Ambushed by wild Derelicts 12471 | -6/Lower Caves | X0-1V1 rewrote Y8-L1Q(g) IFF filter 12498 | -6/Lower Caves | Lost 3 allies 12538 | -6/Lower Caves | X0-1V1 mutated your Propulsion slot to Weapon slot 12573 | -6/Lower Caves | Encountered a Warlord checkpoint 12593 | -6/Lower Caves | Lost 4 allies 12773 | -6/Lower Caves | Entered an active Warlord outpost 12786 | -6/Lower Caves | Learned Factory terminal intel 12800 | -6/Lower Caves | X0-1V1 mutated your Weapon slot to Utility slot 12835 | -6/Lower Caves | Discovered new exit (range 7) 12846 | -6/Lower Caves | Attracted the attention of an 0b10 checkpoint 12846 | -6/Lower Caves | Entered another Lower Caves area 12846 | -6/Lower Caves | Accompanied by 2 allies 13036 | -6/Lower Caves | Attacked by a delusional Derelict stockpiling parts 13100 | -6/Lower Caves | Build established: Scavenger-Tank 13104 | -6/Lower Caves | X0-1V1 sent hostile G-50 Soldier (x6) 13176 | -6/Lower Caves | X0-1V1 mutated your Utility slot to Weapon slot 13219 | -6/Lower Caves | Encountered a Warlord checkpoint 13309 | -6/Lower Caves | Learned Factory non-interactive machine intel 13475 | -6/Lower Caves | Discovered new exit (range 8) 13476 | -6/Lower Caves | Build established: Scavenger-Gunner 13483 | -6/Lower Caves | Entered Zion 13576 | -6/Zion | Discovered new exit (range 16) 13579 | -6/Zion | Given A8's code to call for help 13719 | -6/Zion | System corruption cleaned by Quarantine Array 13851 | -6/Zion | Given the Hacking Drone Bay 13851 | -6/Zion | Found Prototype Device 14104 | -6/Zion | Found Prototype Device 14104 | -6/Zion | Identified Phasing AFG 14307 | -6/Zion | Learned Factory security intel 14585 | -6/Zion | Met Imprinter 14607 | -6/Zion | Imprinted 14609 | -6/Zion | Declared Zion's savior 14847 | -6/Zion | Found Prototype Processor 14847 | -6/Zion | Identified Spectral Analyzer 14863 | -6/Zion | Found Prototype Hackware 14863 | -6/Zion | Identified Exp. Hacking Suite 14866 | -6/Zion | Found Prototype Processor 14866 | -6/Zion | Identified Exp. Armor Integrity Analyzer 14871 | -6/Zion | Found Exp. Armor Integrity Analyzer 14876 | -6/Zion | Found Prototype Processor 14876 | -6/Zion | Identified Exp. Terrain Scan Processor 14994 | -6/Zion | Entered Proximity Caves 14994 | -5/Proximity Caves | Accompanied by 4 allies 15276 | -5/Proximity Caves | Received a Behemoth hack from an annoying Tinkerer 15370 | -5/Proximity Caves | X0-1V1 sent you into danger 15371 | -5/Proximity Caves | Attracted the attention of an 0b10 checkpoint 15411 | -5/Proximity Caves | X0-1V1 sent hostile Thug (x5) 15440 | -5/Proximity Caves | Destroyed 7 combat bots 15448 | -5/Proximity Caves | Lost 3 parts (1p2w) 15473 | -5/Proximity Caves | Unaware initiated a cargo recovery operation 15529 | -5/Proximity Caves | Discovered exit to Factory (range 10) 15622 | -5/Proximity Caves | Learned Factory terminal intel 15723 | -5/Proximity Caves | Build established: Gunner 15727 | -5/Proximity Caves | X0-1V1 activates XOMVISION 15851 | -5/Proximity Caves | Encountered a Derelict sapper outpost 15913 | -5/Proximity Caves | Learned location of 1 exit from Proximity Caves 16135 | -5/Proximity Caves | X0-1V1 activates XOMVISION 16418 | -5/Proximity Caves | Build established: Tank 16424 | -5/Proximity Caves | KE Penetrator reconfigured into Item Mimic 16424 | -5/Proximity Caves | Entered Factory 16424 | -5/Factory | Evolved 2 slots: Propulsion x1, Utility x1 16426 | -5/Factory | Loaded intel: 230 non-interactive machine locations 16426 | -5/Factory | Identified Hacking Drone Bay 16427 | -5/Factory | Loaded intel: 28 terminal locations 16448 | -5/Factory | X0-1V1 sent someone to clean up after you 16624 | -5/Factory | Spotted B-75 Beast 16648 | -5/Factory | X0-1V1 redirected Transport squads to designated parking area 16710 | -5/Factory | X0-1V1 added 0b10 threat records associated with you (minor) 16889 | -5/Factory | X0-1V1 sent you to a vault 16952 | -5/Factory | X0-1V1 enhanced Transport squad support 17097 | -5/Factory | Retrieved Zion intel report: Branch Access 17097 | -5/Factory | Identified exit to Upper Caves 17097 | -5/Factory | Identified exit to Extension 17099 | -5/Factory | Zion Light squad teleported in 17248 | -5/Factory | Zion Heavy squad teleported in 17278 | -5/Factory | Found Prototype Protection 17278 | -5/Factory | Identified Zio. Weapon Casing 17320 | -5/Factory | Entered Extension 17320 | -5/Extension | Accompanied by 4 allies 17381 | -5/Extension | Rescued A7 17477 | -5/Extension | Rescued a captive Derelict 17598 | -5/Extension | X0-1V1 sent you into danger 17600 | -5/Extension | Energy Cycler disabled 17601 | -5/Extension | Rescued a captive Derelict 17602 | -5/Extension | Rescued a captive Derelict 17603 | -5/Extension | Rescued a captive Derelict 17657 | -5/Extension | Zion Kinetic Resupply teleported in 17715 | -5/Extension | Zion Fire squad teleported in 17719 | -5/Extension | Zion Kinetic Resupply teleported in 17756 | -5/Extension | Spotted B-75 Beast 17814 | -5/Extension | Discovered new exit (range 22) 17817 | -5/Extension | Allies destroyed B-75 Beast 17820 | -5/Extension | Spotted B-75 Beast 17836 | -5/Extension | Destroyed B-75 Beast 17950 | -5/Extension | Build established: Commander-Tank 18130 | -5/Extension | Retrieved Zion intel report: Unaware Analyses 18401 | -5/Extension | Discovered new exit (range 10) 18402 | -5/Extension | Discovered new exit (range 6) 18525 | -5/Extension | Entered Cetus 18525 | -5/Cetus | Accompanied by 23 allies (A7) 18530 | -5/Cetus | Acquired a Cetus Manufacturing Module code from A7 18530 | -5/Cetus | Spotted Cetus Guard 18532 | -5/Cetus | Spotted Cetus Guard 18535 | -5/Cetus | Spotted Cetus Guard 18535 | -5/Cetus | Spotted Cetus Guard 18546 | -5/Cetus | Allies destroyed Cetus Guard 18550 | -5/Cetus | Allies destroyed Cetus Guard 18555 | -5/Cetus | Allies destroyed Cetus Guard 18559 | -5/Cetus | Allies destroyed Cetus Guard 18586 | -5/Cetus | Lost 4 allies 18644 | -5/Cetus | Started Cetus Manufacturing Module 18661 | -5/Cetus | Escorted A7 to Cetus Mainframe 18669 | -5/Cetus | Manufactured an Enhanced Grunt 18694 | -5/Cetus | Manufactured an Enhanced Grunt 18719 | -5/Cetus | Manufactured an Enhanced Grunt 18744 | -5/Cetus | Manufactured an Enhanced Grunt 18769 | -5/Cetus | Manufactured an Enhanced Grunt 18776 | -5/Cetus | X0-1V1 activates XOMVISION 18787 | -5/Cetus | Discovered new exit (range 23) 18852 | -5/Cetus | Spotted Cetus Guard 18852 | -5/Cetus | Spotted Cetus Guard 18855 | -5/Cetus | Spotted Cetus Guard 18862 | -5/Cetus | Spotted Cetus Guard 18866 | -5/Cetus | Allies destroyed Cetus Guard 18871 | -5/Cetus | Discovered new exit (range 24) 18871 | -5/Cetus | X0-1V1 upgraded ally (x9) 18874 | -5/Cetus | Allies destroyed Cetus Guard 18881 | -5/Cetus | Allies destroyed Cetus Guard 18881 | -5/Cetus | Allies destroyed Cetus Guard 18912 | -5/Cetus | Lost 3 allies 19078 | -5/Cetus | Scared off Revision 17 19175 | -5/Cetus | X0-1V1 activates XOMVISION 19268 | -5/Cetus | Entered Archives 19268 | -5/Archives | Accompanied by 20 allies (A7) 19273 | -5/Archives | Received a hacking code to weaken MAIN.C 19300 | -5/Archives | Met Zhirov 19303 | -5/Archives | Discovered new exit (range 24) 19306 | -5/Archives | Reinforcements dispatched to Archives 19315 | -5/Archives | Discovered new exit (range 19) 19326 | -5/Archives | Read partially decrypted archive contents 19331 | -5/Archives | Discovered new exit (range 23) 19351 | -5/Archives | Reinforcements dispatched to Archives 19353 | -5/Archives | Zhirov warped through subspace 19371 | -5/Archives | Zhirov detonated Archives 19402 | -5/Archives | Lost 3 parts (2u1w) 19402 | -5/Archives | Lost 19 allies 19477 | -5/Archives | Entered Hub_04(d) 19477 | -5/Hub_04(d) | Discovered new exit (range 10) 19602 | -5/Hub_04(d) | Weapon slot count temporarily expanded by X0-1V1 (+4) 19651 | -5/Hub_04(d) | Discovered new exit (range 24) 19688 | -5/Hub_04(d) | Spotted B-75 Beast 19883 | -5/Hub_04(d) | Build established: Scavenger-Executioner 19894 | -5/Hub_04(d) | X0-1V1 sent allied B-90 Cyclops (x1) 20134 | -5/Hub_04(d) | Network Hub disabled 20137 | -5/Hub_04(d) | Network Hub disabled 20154 | -5/Hub_04(d) | Entered Factory 20154 | -4/Factory | Evolved 2 slots: Utility x2 20155 | -4/Factory | Loaded intel: 26 terminal locations 20398 | -4/Factory | X0-1V1 mutated your Weapon slot to Utility slot 20489 | -4/Factory | Build established: Scavenger-Tank 20492 | -4/Factory | Garrison activated, responded to threat 20654 | -4/Factory | First assault squad dispatched 20675 | -4/Factory | Discovered new exit (range 4) 20765 | -4/Factory | Entered Upper Caves 20777 | -4/Upper Caves | Spotted B-86 Titan 20927 | -4/Upper Caves | Learned location of Quarantine (-2) 21149 | -4/Upper Caves | Discovered new exit (range 5) 21157 | -4/Upper Caves | Entered another Upper Caves area 21233 | -4/Upper Caves | Attracted the attention of an 0b10 checkpoint 21292 | -4/Upper Caves | Spotted B-86 Titan 21526 | -4/Upper Caves | X0-1V1 whisked you away to safety 21580 | -4/Upper Caves | Identified exit to Warlord 21580 | -4/Upper Caves | X0-1V1 revealed exit location to -4/Warlord 21705 | -4/Upper Caves | X0-1V1 sent you into danger 21710 | -4/Upper Caves | Destroyed B-86 Titan 21904 | -4/Upper Caves | Entered Warlord 22499 | -4/Warlord | Visited the Vortex Lab 22512 | -4/Warlord | Warlord's base attacked by MAIN.C 22515 | -4/Warlord | Found Prototype Piercing Weapon 22518 | -4/Warlord | Found Prototype Piercing Weapon 22535 | -4/Warlord | X0-1V1 activates XOMVISION 22565 | -4/Warlord | Identified Vortex Lance (x2) 22579 | -4/Warlord | Found Prototype Reactor 22579 | -4/Warlord | Identified Vortex Chain Reactor 22584 | -4/Warlord | Found Prototype Device 22584 | -4/Warlord | Identified Exp. Cloaking Device 22593 | -4/Warlord | Found Prototype Device 22593 | -4/Warlord | Identified Exp. Focal Shield 22617 | -4/Warlord | Found Prototype Hackware 22655 | -4/Warlord | X0-1V1 mutated your Utility slot to Propulsion slot 22765 | -4/Warlord | Destroyed B-90 Cyclops 22862 | -4/Warlord | Warlord forces counterattacked 22887 | -4/Warlord | Spotted Striker 22908 | -4/Warlord | Lost 3 allies 22914 | -4/Warlord | Spotted B-90 Cyclops 22916 | -4/Warlord | Spotted B-86 Titan 22940 | -4/Warlord | Weapon slot count temporarily expanded by X0-1V1 (+2) 22944 | -4/Warlord | Destroyed B-90 Cyclops 22975 | -4/Warlord | Lost 9 allies 22981 | -4/Warlord | Spotted Striker 23012 | -4/Warlord | Spotted Executioner 23012 | -4/Warlord | Spotted Striker 23014 | -4/Warlord | Destroyed Striker 23019 | -4/Warlord | Destroyed Executioner 23023 | -4/Warlord | Discovered new exit (range 23) 23040 | -4/Warlord | Destroyed 16 combat bots 23116 | -4/Warlord | Spotted Executioner 23122 | -4/Warlord | Spotted Executioner 23125 | -4/Warlord | Spotted Striker 23172 | -4/Warlord | Lost 9 allies 23187 | -4/Warlord | Warlord base infiltrated, sounded retreat 23212 | -4/Warlord | Spotted B-90 Cyclops 23212 | -4/Warlord | Spotted Striker 23212 | -4/Warlord | Spotted B-86 Titan 23212 | -4/Warlord | Spotted Striker 23212 | -4/Warlord | Spotted Executioner 23221 | -4/Warlord | Entered Proximity Caves 23222 | -3/Proximity Caves | Identified exit to Research 23248 | -3/Proximity Caves | Lost 4 allies 23256 | -3/Proximity Caves | Build established: Scavenger-Executioner 23564 | -3/Proximity Caves | Entered Research 23564 | -3/Research | Evolved 2 slots: Utility x1, Weapon x1 23565 | -3/Research | Loaded intel: 127 machine locations 23615 | -3/Research | Build established: Scavenger-Tank 23627 | -3/Research | X0-1V1 sent you to a vault 23880 | -3/Research | Identified exit to Armory 23880 | -3/Research | X0-1V1 revealed exit location to -3/Armory 23928 | -3/Research | X0-1V1 sent someone to clean up after you 24008 | -3/Research | Discovered new exit (range 19) 24065 | -3/Research | Identified exit to Research 24174 | -3/Research | P-80 Master assimilated allied Rainmaker 8c 24191 | -3/Research | P-80 Master assimilated allied Rainmaker 8b 24904 | -3/Research | X0-1V1 activates XOMVISION 24947 | -3/Research | Zion Heavy Resupply teleported in 24961 | -3/Research | X0-1V1 vaporized surrounding terrain (radius 16) 25035 | -3/Research | Discovered new exit (range 19) 25079 | -3/Research | Terminal network hard line cut 25102 | -3/Research | Entered Testing 25102 | -3/Testing | Accompanied by 1 ally 25239 | -3/Testing | Found Prototype Device 25239 | -3/Testing | Identified AEGIS Remote Shield 25265 | -3/Testing | X0-1V1 sent you into danger 25308 | -3/Testing | Retrieved Zion intel report: Prototype Schematics 25334 | -3/Testing | Found Adv. Micro-nuke Launcher 25338 | -3/Testing | Found Adv. Micro-nuke Launcher 25486 | -3/Testing | X0-1V1 activates XOMVISION 25510 | -3/Testing | X0-1V1 sent you to a vault 25518 | -3/Testing | Found Prototype Device 25518 | -3/Testing | Identified Exp. ECM Suite 25525 | -3/Testing | Found Prototype Processor 25525 | -3/Testing | Identified Exp. Target Analyzer 25619 | -3/Testing | Found Prototype Energy Gun 25619 | -3/Testing | Identified Warp Gun 25728 | -3/Testing | Retrieved Zion intel report: Active Garrisons 25746 | -3/Testing | Spotted PD-4N1FWHR34I 25747 | -3/Testing | System corruption reached 10% 25755 | -3/Testing | Destroyed PD-4N1FWHR34I 25783 | -3/Testing | Lost 4 allies 25810 | -3/Testing | Scanned by Researcher 25846 | -3/Testing | Found Prototype Protection 25846 | -3/Testing | Identified SHELL Armor 25906 | -3/Testing | X0-1V1 activates XOMVISION 26031 | -3/Testing | Build established: Tank 26103 | -3/Testing | Found Prototype Hackware 26379 | -3/Testing | Terminal network hard line cut 26441 | -3/Testing | X0-1V1 revealed exit location to -2/Research 26566 | -3/Testing | Build established: Scavenger-Tank 26606 | -3/Testing | Found Prototype Hackware 26825 | -3/Testing | Garrison activated, responded to threat 26848 | -3/Testing | X0-1V1 whisked you away to safety 26852 | -3/Testing | First assault squad dispatched 27049 | -3/Testing | System corruption reached 30% 27165 | -3/Testing | X0-1V1 activates XOMVISION 27168 | -3/Testing | X0-1V1 vaporized surrounding terrain (radius 18) 27187 | -3/Testing | Entered Research 27187 | -2/Research | Evolved 2 slots: Utility x2 27297 | -2/Research | Zion Heavy squad teleported in 27437 | -2/Research | First assault squad dispatched 27466 | -2/Research | Zion hero teleported in (99-TNT) 27588 | -2/Research | X0-1V1 sent you into danger 27836 | -2/Research | Build established: Scavenger-Skirmisher 27979 | -2/Research | Found Exp. Hacking Suite 27983 | -2/Research | Found Exp. Hacking Suite 27987 | -2/Research | Found Exp. Hacking Suite 28215 | -2/Research | Garrison activated, responded to threat 28287 | -2/Research | Build established: Scavenger-Tank 28332 | -2/Research | High security lockdown imminent 28335 | -2/Research | X0-1V1 turns hostiles against one another 28373 | -2/Research | Lost 5 parts (2p2n1w) 28376 | -2/Research | Lost 3 allies 28412 | -2/Research | High security lockdown engaged 28504 | -2/Research | System corruption reached 10% 28510 | -2/Research | Discovered new exit (range 20) 28560 | -2/Research | Entered Access 28560 | -1/Access | Evolved 2 slots: Utility x2 28680 | -1/Access | Zion Kinetic Resupply teleported in 28908 | -1/Access | Zion Offense Resupply teleported in 29060 | -1/Access | First assault squad dispatched 29122 | -1/Access | X0-1V1 sent you to a vault 29142 | -1/Access | Found Prototype Device 29142 | -1/Access | Identified Femtoactuators 29194 | -1/Access | Lost 3 parts (1u2w) 29251 | -1/Access | Found Prototype Device 29251 | -1/Access | Identified Thermal Barrier 29298 | -1/Access | Found YOLO Cannon 29508 | -1/Access | Destroyed 8 combat bots 29512 | -1/Access | Lost 3 parts (2p1w) 29513 | -1/Access | X0-1V1 sent allied Striker (x2) 29520 | -1/Access | High security lockdown imminent 29571 | -1/Access | Identified Ghost Barrier 29572 | -1/Access | Identified System Mapper (x2) 29580 | -1/Access | Lost 5 parts (2p2u1w) 29583 | -1/Access | Destroyed 9 combat bots 29597 | -1/Access | Found Hvy. Scimitar of Distortion 29600 | -1/Access | High security lockdown engaged 29646 | -1/Access | Spotted B-99 Colossus 29646 | -1/Access | Spotted B-99 Colossus 29659 | -1/Access | Identified exit to Command 29659 | -1/Access | X0-1V1 revealed exit location to -1/Command 29699 | -1/Access | Spotted B-99 Colossus 29740 | -1/Access | Energy Cycler disabled 29746 | -1/Access | Identified exit to Surface 29746 | -1/Access | X0-1V1 revealed exit location to -0/Surface 29879 | -1/Access | Entered Command 29881 | -1/Command | Build established: Wizard-Mutant 29953 | -1/Command | Spotted B-99 Colossus 29975 | -1/Command | X0-1V1 sent you to a vault 30100 | -1/Command | Retrieved Zion intel report: Emergency Access 30101 | -1/Command | Lost 3 allies 30104 | -1/Command | Sensors blinded by X0-1V1 30124 | -1/Command | Disengaged cave seal 30124 | -1/Command | Zionites emerged from the dark tunnel 30129 | -1/Command | First assault squad dispatched 30139 | -1/Command | Allies destroyed B-99 Colossus 30167 | -1/Command | Found Gamma Bomb Array 30260 | -1/Command | Found Gamma Bomb Array 30309 | -1/Command | P-80 Master assimilated allied LI-SLD(d) 30340 | -1/Command | P-80 Master assimilated allied A1-P2H(M) 30394 | -1/Command | Lost 6 allies 30523 | -1/Command | Retrieved Zion intel report: Component Stockpiles 30529 | -1/Command | Spotted B-99 Colossus 30621 | -1/Command | Spotted Striker 30623 | -1/Command | Spotted Alpha 7 30626 | -1/Command | Spotted Executioner 30630 | -1/Command | Spotted B-99 Colossus 30630 | -1/Command | Spotted Executioner 30631 | -1/Command | Spotted Executioner 30631 | -1/Command | Spotted Executioner 30631 | -1/Command | Spotted Striker 30631 | -1/Command | Spotted Alpha 7 30636 | -1/Command | Spotted B-99 Colossus 30638 | -1/Command | Discovered exit to Surface (range 13) 30642 | -1/Command | Spotted M Guard 30642 | -1/Command | Spotted M Guard 30642 | -1/Command | Spotted Combat Programmer 30642 | -1/Command | Spotted Combat Programmer 30642 | -1/Command | X0-1V1 whisked you away to safety 30642 | -1/Command | Core integrity fell below 50% 30672 | -1/Command | Lost 7 parts (4n3u) 30708 | -1/Command | X0-1V1 sent you into danger 30738 | -1/Command | System corruption reached 10% 30747 | -1/Command | X0-1V1 turns hostiles against one another 30773 | -1/Command | Identified exit to Access_0 30773 | -1/Command | X0-1V1 revealed exit location to -1/Access_0 30781 | -1/Command | Core integrity fell below 20% 30788 | -1/Command | Core integrity restored by X0-1V1 (+361) 30823 | -1/Command | X0-1V1 downgraded hostiles (x3) 30830 | -1/Command | Combat Programmer assimilated allied Z-Experimental 30853 | -1/Command | High security lockdown imminent 30896 | -1/Command | Crushed by falling debris 30911 | -1/Command | Build established: Hacker-Mutant 30933 | -1/Command | High security lockdown engaged 30937 | -1/Command | X0-1V1 activates XOMVISION 31049 | -1/Command | Core integrity restored by X0-1V1 (+304) 31054 | -1/Command | X0-1V1 revealed exit location to -0/Surface 31064 | -1/Command | X0-1V1 activates XOMVISION 31077 | -1/Command | X0-1V1 sent allied G-73 Enforcer (x2) 31094 | -1/Command | Destroyed by B-99 Colossus with Multirail Last Messages --------------- 31091_ Field strength at 38. 31091_ Penetrated by Slug. 31092_ Field strength at 6. 31092_ Stasis field depleted. 31092_ Knocked back. 31092_ Triggered Stasis Trap. 31092_ A bubble of rippling energy engulfs the area. 31092_ Field strength at 94. 31093_ Field strength at 70. 31094_ Field strength at 46. 31094_ Penetrated by Slug. 31094_ Slug penetrates Wall. 31094_ Penetrated by Slug. 31094_ Knocked back. 31094_ Triggered Stasis Trap. 31094_ A bubble of rippling energy engulfs the area. 31094_ Field strength at 94. 31094_ Knocked back. 31094_ Penetrated by Slug. 31094_ X0-1V1 snickers! Map ----- +----------------------------------------------------+ | ?????????????????????????????????????????????????? | | ????########??????????????????#####??????????????? | | ????# #################### ###########????? | | ????# + ! " #????? | | ????#" #################### ###### #????? | | ????#" #??????????????????##"##????# ###### | | ????#" #???????????????????# #?????# | | ????#T #???????????????????###?????# | | ????#" ######????###???????####????# | | ????#" # #????# ?????? #????# | | ????#" # #????# ?????? #????# | | ????# # #????# ?????? #????# | | ????# + #????# """""" #????# | | ????# # #????# " ? #????# ##### | | ????# # #????# ? <" ?^ #????# #???# | | ????# ! # #????# ? ""?? #????# #???# | | ????####+### #????# ? ?? #????# #???## | | ??????# #????# "" """ #????# #????? | | ??????# #????# #????# #????? | | ??????# ###### #????# B BB #????# #????? | | ??????# ######+####?? B BB #????# #????? | | ??????# # #???#;^^^ ^;#??????# #????? | | ??????# # #???#% ^^ #??????# #????? | | #?????# # """" #???##^ ^ ##??????# #????? | | # ????# # """" #???#%^!%^%E #??????# #????? | | # ???#C #! """" #??#"#@^! E##??????# #????? | | ?# #### # """" #??##K^ #??????# #????? | | ?? + # #???#; % %##??????# #????? | | ??? + # #???# %^ % #??????# #??+?# | | ???? + # """" #???## ^ %^7##???#### #????# | | ????? + # """" #????# ^ ^##???# #????+ | | ??????# # """" #????##;;;/#;#???# #????# | | ??????# # """" #?????# E#;##### #????# | | ??????# + #?????# +????# | | ??????# # #?????# % #????# | | ?????## ###########?????#H % #????? | | ?????# #??????????????# #????? | | ?????# T" #??????????????# ######## #????? | | ?????# " ################ #?######+###??? | | ?????# %% h #?# #??? | | ?????###########=* % #?# #??? | | ?????# =#%! % #?#"" #??? | | ?????# !] !% #?#"" #??? | | ?????# ! # #?#"T #??? | | ?????# # % #?#"" #??? | | ?????# # " "" "" % #?#"" #??? | | ?????# # """" """" #?# #### | | ?????# # """ """" ### # ## | | ?????###+##+#+## """ """ ##!# # ##"" | | ???????# ! %=%! | +----------------------------------------------------+ Best States ------------- Heat Dissipation 182 Energy Generation 65 Energy Capacity 2000 Matter Stores 1000 Matter Capacity 1000 Sight Range 27 Terrain Scan Range 20 Terrain Scan Density 1010 ECM Strength 1 Jamming Range 16 Cloak Strength 4 Power Amplification 80 Armor Coverage 1800 Resistance: KI 30 Resistance: TH 50 Weapon Shielding 66 Weapon Cycling 25 Melee Speed Boost 40 Phase Shifting 15 Evasion (%) 55 Melee Accuracy 6 Target Analysis 10 Core Analysis 6 Armor Integrity Analysis 30 Recoil Reduction 7 Matter Filtering 50 Kinecelleration 40 Offensive Hacking 88 Defensive Hacking 32 Item Schematics ----------------- Hvy. Wave Gun | -3/Testing | Z-intel Cld. Impulse Thruster | -3/Testing | Z-intel Adv. Micro-nuke Launcher | -3/Testing | Z-intel Hds. Centrium Wheel | -3/Testing | Z-intel Molecular Scythe | -3/Testing | Z-intel Lrn. Phase Cannon | -3/Testing | Z-intel Adv. Matter Compressor | -3/Testing | Z-intel Imp. KE Penetrator | -3/Testing | Z-intel Centrium Medium Armor Plating | -3/Testing | Z-intel Mni. Fusion Reactor | -3/Testing | Z-intel Quantum Shading Machine | -3/Testing | Archive Helical Railgun | -3/Testing | Archive Com. Mass Driver | -3/Testing | Archive Stealth Drone Bay | -3/Testing | Archive Exp. Thermal Shield | -3/Testing | Archive Exp. Matter Compressor | -3/Testing | Archive Robot Schematics ------------------ L-61 Swordsman | -3/Testing | Archive Fabricated ------------ Nothing Repaired ---------- Nothing Studied --------- Gauss Rifle | -7/Factory | Hacked Lgt. Treads | -7/Factory | Hacked Med. Treads | -7/Factory | Hacked Carbon-fiber Leg | -6/Factory | Hacked Alien Tech Used ----------------- None Achievements -------------- Seal Team Z Challenges ------------ None Game ------ Seed SignalMultinovaRedistributor Manual? 0 Play Time 05:52:45 Cumulative 291.9 hours Start 2026.07.16 @ 01:27:37 End 2026.07.18 @ 04:22:02 Sessions 5 Manual Loads 0 Difficulty Rogue Special Mode None Game No. 134 Rogue 134 Adventurer 0 Explorer 0 Win Type - Total 18 Types 14/1/1/1/0/0/0/0/0/1 Lore% 79 Gallery% 74 Achievement% 72 Wizard Run 0 Options --------- Layout 0 ASCII 0 Keyboard 1 Movement Arrows Keybinds 0 Fullscreen 2 Font 18/SmallcapsGlow Map View 76x50 Zoom Use 0% Tactical HUD 1 Map Filters NONE Filters NONE Steam 1 RUN: ff627058-4be7-4104-8866-acbaa9da4595